Workbook

Sheet Simulation
A3: Timeline
B4: Start of Model | E4: Date | F4: 2015-01-01
B5: Months in Period | E5: Months | F5: 12
B6: Periods in Year | E6: Periods | F6: =12/F5 -> 1
B7: Option Expiration | E7: Months | F7: 60
B8: Option Expiration | E8: Date | F8: =EDATE(F4,F7) -> 2020-01-01
A11: Financial Inputs | J11: Value of Call and Put - Continuous | N11: Value of Call and Put - Discrete
B12: Starting Market Price | E12: Rubles | F12: 100 | K12: Nominal | L12: Current | O12: Nominal | P12: Current
B13: Exercise Price | E13: Rubles | F13: 100 | J13: Stock Price | K13: =SUMIF(22:22,TRUE,34:34) -> 70.88392403 | N13: Stock Price | O13: =SUMIF(22:22,TRUE,36:36) -> 73.17536033
B14: Volatility | E14: Annual % | F14: 0.2 | J14: Call Value | K14: =SUMIF(22:22,TRUE,39:39) -> 0 | L14: =SUM(45:45) -> 0 | N14: Call Value | O14: =SUMIF(22:22,TRUE,48:48) -> 0 | P14: =SUM(51:51) -> 0
B15: Risk Free Rate | F15: 0 | J15: Put Value | K15: =SUMIF(22:22,TRUE,42:42) -> 29.11607597 | L15: =SUM(46:46) -> 29.11607597 | N15: Put Value | O15: =SUMIF(22:22,TRUE,49:49) -> 26.82463967 | P15: =SUM(52:52) -> 26.82463967
B16: Dividend Yield | F16: 0
A20: Timeline
B21: Start Date | I21: =F4 -> 2015-01-01 | J21: =EDATE(I21,$F$5) -> 2016-01-01 | K21: =EDATE(J21,$F$5) -> 2017-01-01 | L21: 2018-01-01 | M21: 2019-01-01 | N21: 2020-01-01 | O21: 2021-01-01 | P21: 2022-01-01 | Q21: 2023-01-01 | R21: =EDATE(Q21,$F$5) -> 2024-01-01 | S21: 2025-01-01 | T21: 2026-01-01 | U21: 2027-01-01 | V21: 2028-01-01 | W21: 2029-01-01 | X21: 2030-01-01 | Y21: 2031-01-01 | Z21: 2032-01-01 | AA21: 2033-01-01 | AB21: 2034-01-01 | AC21: 2035-01-01 | AD21: 2036-01-01 | AE21: 2037-01-01 | AF21: 2038-01-01 | AG21: 2039-01-01 | AH21: 2040-01-01 | AI21: 2041-01-01 | AJ21: 2042-01-01 | AK21: 2043-01-01 | AL21: 2044-01-01 | AM21: 2045-01-01 | AN21: 2046-01-01 | AO21: 2047-01-01 | AP21: 2048-01-01 | AQ21: 2049-01-01 | AR21: 2050-01-01 | AS21: 2051-01-01 | AT21: 2052-01-01 | AU21: 2053-01-01 | AV21: 2054-01-01 | AW21: 2055-01-01 | AX21: 2056-01-01 | AY21: 2057-01-01 | AZ21: 2058-01-01 | BA21: 2059-01-01 | BB21: 2060-01-01 | BC21: 2061-01-01 | BD21: 2062-01-01 | BE21: 2063-01-01 | BF21: 2064-01-01 | BG21: 2065-01-01 | BH21: 2066-01-01 | BI21: 2067-01-01 | BJ21: 2068-01-01 | BK21: 2069-01-01 | BL21: 2070-01-01 | BM21: 2071-01-01 | BN21: 2072-01-01
B22: Option Expiration | F22: =F8 -> 2020-01-01 | I22: =I21=$F$22 -> FALSE | J22: =J21=$F$22 -> FALSE | K22: FALSE | L22: FALSE | M22: FALSE | N22: TRUE | O22: FALSE | P22: FALSE | Q22: FALSE | R22: =R21=$F$22 -> FALSE | S22: =S21=$F$22 -> FALSE | T22: =T21=$F$22 -> FALSE | U22: =U21=$F$22 -> FALSE | V22: =V21=$F$22 -> FALSE | W22: =W21=$F$22 -> FALSE | X22: =X21=$F$22 -> FALSE | Y22: =Y21=$F$22 -> FALSE | Z22: =Z21=$F$22 -> FALSE | AA22: =AA21=$F$22 -> FALSE | AB22: =AB21=$F$22 -> FALSE | AC22: =AC21=$F$22 -> FALSE | AD22: =AD21=$F$22 -> FALSE | AE22: =AE21=$F$22 -> FALSE | AF22: =AF21=$F$22 -> FALSE | AG22: =AG21=$F$22 -> FALSE | AH22: =AH21=$F$22 -> FALSE | AI22: =AI21=$F$22 -> FALSE | AJ22: =AJ21=$F$22 -> FALSE | AK22: =AK21=$F$22 -> FALSE | AL22: =AL21=$F$22 -> FALSE | AM22: =AM21=$F$22 -> FALSE | AN22: =AN21=$F$22 -> FALSE | AO22: =AO21=$F$22 -> FALSE | AP22: =AP21=$F$22 -> FALSE | AQ22: =AQ21=$F$22 -> FALSE | AR22: =AR21=$F$22 -> FALSE | AS22: =AS21=$F$22 -> FALSE | AT22: =AT21=$F$22 -> FALSE | AU22: =AU21=$F$22 -> FALSE | AV22: =AV21=$F$22 -> FALSE | AW22: =AW21=$F$22 -> FALSE | AX22: =AX21=$F$22 -> FALSE | AY22: =AY21=$F$22 -> FALSE | AZ22: =AZ21=$F$22 -> FALSE | BA22: =BA21=$F$22 -> FALSE | BB22: =BB21=$F$22 -> FALSE | BC22: =BC21=$F$22 -> FALSE | BD22: =BD21=$F$22 -> FALSE | BE22: =BE21=$F$22 -> FALSE | BF22: =BF21=$F$22 -> FALSE | BG22: =BG21=$F$22 -> FALSE | BH22: =BH21=$F$22 -> FALSE | BI22: =BI21=$F$22 -> FALSE | BJ22: =BJ21=$F$22 -> FALSE | BK22: =BK21=$F$22 -> FALSE | BL22: =BL21=$F$22 -> FALSE | BM22: =BM21=$F$22 -> FALSE | BN22: =BN21=$F$22 -> FALSE
B23: Years | J23: =DAYS360(I21,J21)/360 -> 1 | K23: =DAYS360(J21,K21)/360 -> 1 | L23: 1 | M23: 1 | N23: 1 | O23: 1 | P23: 1 | Q23: 1 | R23: =DAYS360(Q21,R21)/360 -> 1 | S23: 1 | T23: 1 | U23: 1 | V23: 1 | W23: 1 | X23: 1 | Y23: 1 | Z23: 1 | AA23: 1 | AB23: 1 | AC23: 1 | AD23: 1 | AE23: 1 | AF23: 1 | AG23: 1 | AH23: 1 | AI23: 1 | AJ23: 1 | AK23: 1 | AL23: 1 | AM23: 1 | AN23: 1 | AO23: 1 | AP23: 1 | AQ23: 1 | AR23: 1 | AS23: 1 | AT23: 1 | AU23: 1 | AV23: 1 | AW23: 1 | AX23: 1 | AY23: 1 | AZ23: 1 | BA23: 1 | BB23: 1 | BC23: 1 | BD23: 1 | BE23: 1 | BF23: 1 | BG23: 1 | BH23: 1 | BI23: 1 | BJ23: 1 | BK23: 1 | BL23: 1 | BM23: 1 | BN23: 1
B24: Accumulated Years | I24: 0 | J24: =I24+J23 -> 1 | K24: =J24+K23 -> 2 | L24: 3 | M24: 4 | N24: 5 | O24: 6 | P24: 7 | Q24: 8 | R24: =Q24+R23 -> 9 | S24: =R24+S23 -> 10 | T24: =S24+T23 -> 11 | U24: =T24+U23 -> 12 | V24: =U24+V23 -> 13 | W24: =V24+W23 -> 14 | X24: =W24+X23 -> 15 | Y24: =X24+Y23 -> 16 | Z24: =Y24+Z23 -> 17 | AA24: =Z24+AA23 -> 18 | AB24: =AA24+AB23 -> 19 | AC24: =AB24+AC23 -> 20 | AD24: =AC24+AD23 -> 21 | AE24: =AD24+AE23 -> 22 | AF24: =AE24+AF23 -> 23 | AG24: =AF24+AG23 -> 24 | AH24: =AG24+AH23 -> 25 | AI24: =AH24+AI23 -> 26 | AJ24: =AI24+AJ23 -> 27 | AK24: =AJ24+AK23 -> 28 | AL24: =AK24+AL23 -> 29 | AM24: =AL24+AM23 -> 30 | AN24: =AM24+AN23 -> 31 | AO24: =AN24+AO23 -> 32 | AP24: =AO24+AP23 -> 33 | AQ24: =AP24+AQ23 -> 34 | AR24: =AQ24+AR23 -> 35 | AS24: =AR24+AS23 -> 36 | AT24: =AS24+AT23 -> 37 | AU24: =AT24+AU23 -> 38 | AV24: =AU24+AV23 -> 39 | AW24: =AV24+AW23 -> 40 | AX24: =AW24+AX23 -> 41 | AY24: =AX24+AY23 -> 42 | AZ24: =AY24+AZ23 -> 43 | BA24: =AZ24+BA23 -> 44 | BB24: =BA24+BB23 -> 45 | BC24: =BB24+BC23 -> 46 | BD24: =BC24+BD23 -> 47 | BE24: =BD24+BE23 -> 48 | BF24: =BE24+BF23 -> 49 | BG24: =BF24+BG23 -> 50 | BH24: =BG24+BH23 -> 51 | BI24: =BH24+BI23 -> 52 | BJ24: =BI24+BJ23 -> 53 | BK24: =BJ24+BK23 -> 54 | BL24: =BK24+BL23 -> 55 | BM24: =BL24+BM23 -> 56 | BN24: =BM24+BN23 -> 57
B25: Random Variable | F25: RAND() | J25: =RAND() -> 0.01500284928 | K25: 0.6816242646 | L25: 0.6252830582 | M25: 0.8910647974 | N25: 0.2925730129 | O25: 0.4800401514 | P25: 0.3545671391 | Q25: 0.7022848624 | R25: 0.4616362401 | S25: 0.7897072866 | T25: 0.8373673875 | U25: 0.4724023105 | V25: 0.1930908096 | W25: 0.4132556007 | X25: 0.9981617494 | Y25: 0.5752216391 | Z25: 0.04485105751 | AA25: 0.2743402995 | AB25: 0.1955458527 | AC25: 0.9326086489 | AD25: 0.2107478638 | AE25: 0.6109203383 | AF25: 0.3893611798 | AG25: 0.595502401 | AH25: 0.8986073505 | AI25: 0.8681799145 | AJ25: 0.9675905699 | AK25: 0.7400176319 | AL25: 0.5425745625 | AM25: 0.477607255 | AN25: 0.564366286 | AO25: 0.09452629305 | AP25: 0.7418306014 | AQ25: 0.8492344487 | AR25: 0.2070195018 | AS25: 0.4202693945 | AT25: 0.4730574197 | AU25: 0.5722729303 | AV25: 0.6366513311 | AW25: 0.4732152664 | AX25: 0.6178093572 | AY25: 0.77205806 | AZ25: 0.3527062926 | BA25: 0.3219748771 | BB25: 0.2029968781 | BC25: 0.08847899237 | BD25: 0.06248005455 | BE25: 0.1083236129 | BF25: 0.8126503113 | BG25: 0.8473679654 | BH25: 0.5881900539 | BI25: 0.2098137939 | BJ25: 0.1778942534 | BK25: 0.6286077312 | BL25: 0.638671996 | BM25: 0.3304371805 | BN25: 0.9224580824
B26: Standard Deviations from Zero | F26: NORMSINV() | J26: =NORMSINV(J25) -> -2.170015146 | K26: =NORMSINV(K25) -> 0.4722456338 | L26: 0.3193859236 | M26: 1.232210652 | N26: -0.5458834931 | O26: -0.05005281237 | P26: -0.3730190332 | Q26: 0.5309834106 | R26: =NORMSINV(R25) -> -0.09631237854 | S26: =NORMSINV(S25) -> 0.8054060066 | T26: =NORMSINV(T25) -> 0.9836955569 | U26: =NORMSINV(U25) -> -0.06923241562 | V26: =NORMSINV(V25) -> -0.8665627713 | W26: =NORMSINV(W25) -> -0.219178245 | X26: =NORMSINV(X25) -> 2.904661806 | Y26: =NORMSINV(Y25) -> 0.1896840478 | Z26: =NORMSINV(Z25) -> -1.69697115 | AA26: =NORMSINV(AA25) -> -0.5997383901 | AB26: =NORMSINV(AB25) -> -0.8576392309 | AC26: =NORMSINV(AC25) -> 1.495504976 | AD26: =NORMSINV(AD25) -> -0.8038290196 | AE26: =NORMSINV(AE25) -> 0.2817185579 | AF26: =NORMSINV(AF25) -> -0.280984407 | AG26: =NORMSINV(AG25) -> 0.2417224949 | AH26: =NORMSINV(AH25) -> 1.273656162 | AI26: =NORMSINV(AI25) -> 1.117828678 | AJ26: =NORMSINV(AJ25) -> 1.846505371 | AK26: =NORMSINV(AK25) -> 0.6433997644 | AL26: =NORMSINV(AL25) -> 0.1069219808 | AM26: =NORMSINV(AM25) -> -0.05615979435 | AN26: =NORMSINV(AN25) -> 0.1620487959 | AO26: =NORMSINV(AO25) -> -1.313386969 | AP26: =NORMSINV(AP25) -> 0.6489993485 | AQ26: =NORMSINV(AQ25) -> 1.033155567 | AR26: =NORMSINV(AR25) -> -0.8168065235 | AS26: =NORMSINV(AS25) -> -0.2012043516 | AT26: =NORMSINV(AT25) -> -0.06758645345 | AU26: =NORMSINV(AU25) -> 0.1821638531 | AV26: =NORMSINV(AV25) -> 0.3495221593 | AW26: =NORMSINV(AW25) -> -0.06718989101 | AX26: =NORMSINV(AX25) -> 0.2997323961 | AY26: =NORMSINV(AY25) -> 0.7456417094 | AZ26: =NORMSINV(AZ25) -> -0.3780242421 | BA26: =NORMSINV(BA25) -> -0.4621834728 | BB26: =NORMSINV(BB25) -> -0.8309643729 | BC26: =NORMSINV(BC25) -> -1.350180833 | BD26: =NORMSINV(BD25) -> -1.534282744 | BE26: =NORMSINV(BE25) -> -1.235492608 | BF26: =NORMSINV(BF25) -> 0.8877051453 | BG26: =NORMSINV(BG25) -> 1.025210088 | BH26: =NORMSINV(BH25) -> 0.2228915768 | BI26: =NORMSINV(BI25) -> -0.8070675129 | BJ26: =NORMSINV(BJ25) -> -0.9234197431 | BK26: =NORMSINV(BK25) -> 0.3281681373 | BL26: =NORMSINV(BL25) -> 0.3549113462 | BM26: =NORMSINV(BM25) -> -0.4387063008 | BN26: =NORMSINV(BN25) -> 1.421801668
B27: Risk Free Rate | F27: =F15 -> 0 | J27: =$F$27 -> 0 | K27: =$F$27 -> 0 | L27: 0 | M27: 0 | N27: 0 | O27: 0 | P27: 0 | Q27: 0 | R27: 0 | S27: 0 | T27: 0 | U27: 0 | V27: 0 | W27: 0 | X27: 0 | Y27: 0 | Z27: 0 | AA27: 0 | AB27: 0 | AC27: 0 | AD27: 0 | AE27: 0 | AF27: 0 | AG27: 0 | AH27: 0 | AI27: 0 | AJ27: 0 | AK27: 0 | AL27: 0 | AM27: 0 | AN27: 0 | AO27: 0 | AP27: 0 | AQ27: 0 | AR27: 0 | AS27: 0 | AT27: 0 | AU27: 0 | AV27: 0 | AW27: 0 | AX27: 0 | AY27: 0 | AZ27: 0 | BA27: 0 | BB27: 0 | BC27: 0 | BD27: 0 | BE27: 0 | BF27: 0 | BG27: 0 | BH27: 0 | BI27: 0 | BJ27: 0 | BK27: 0 | BL27: 0 | BM27: 0 | BN27: 0
B28: Dividend Yield | F28: =F16 -> 0 | J28: =$F$28 -> 0 | K28: =$F$28 -> 0 | L28: 0 | M28: 0 | N28: 0 | O28: 0 | P28: 0 | Q28: 0 | R28: 0 | S28: 0 | T28: 0 | U28: 0 | V28: 0 | W28: 0 | X28: 0 | Y28: 0 | Z28: 0 | AA28: 0 | AB28: 0 | AC28: 0 | AD28: 0 | AE28: 0 | AF28: 0 | AG28: 0 | AH28: 0 | AI28: 0 | AJ28: 0 | AK28: 0 | AL28: 0 | AM28: 0 | AN28: 0 | AO28: 0 | AP28: 0 | AQ28: 0 | AR28: 0 | AS28: 0 | AT28: 0 | AU28: 0 | AV28: 0 | AW28: 0 | AX28: 0 | AY28: 0 | AZ28: 0 | BA28: 0 | BB28: 0 | BC28: 0 | BD28: 0 | BE28: 0 | BF28: 0 | BG28: 0 | BH28: 0 | BI28: 0 | BJ28: 0 | BK28: 0 | BL28: 0 | BM28: 0 | BN28: 0
B29: Volatility Squared | F29: =F14 -> 0.2 | J29: =$F$29^2 -> 0.04 | K29: =$F$29^2 -> 0.04 | L29: 0.04 | M29: 0.04 | N29: 0.04 | O29: 0.04 | P29: 0.04 | Q29: 0.04 | R29: 0.04 | S29: 0.04 | T29: 0.04 | U29: 0.04 | V29: 0.04 | W29: 0.04 | X29: 0.04 | Y29: 0.04 | Z29: 0.04 | AA29: 0.04 | AB29: 0.04 | AC29: 0.04 | AD29: 0.04 | AE29: 0.04 | AF29: 0.04 | AG29: 0.04 | AH29: 0.04 | AI29: 0.04 | AJ29: 0.04 | AK29: 0.04 | AL29: 0.04 | AM29: 0.04 | AN29: 0.04 | AO29: 0.04 | AP29: 0.04 | AQ29: 0.04 | AR29: 0.04 | AS29: 0.04 | AT29: 0.04 | AU29: 0.04 | AV29: 0.04 | AW29: 0.04 | AX29: 0.04 | AY29: 0.04 | AZ29: 0.04 | BA29: 0.04 | BB29: 0.04 | BC29: 0.04 | BD29: 0.04 | BE29: 0.04 | BF29: 0.04 | BG29: 0.04 | BH29: 0.04 | BI29: 0.04 | BJ29: 0.04 | BK29: 0.04 | BL29: 0.04 | BM29: 0.04 | BN29: 0.04
B30: Option Life | F30: =F7 -> 60 | J30: =$F$30/$F$5 -> 5 | K30: =$F$30/$F$5 -> 5 | L30: 5 | M30: 5 | N30: 5 | O30: 5 | P30: 5 | Q30: 5 | R30: 5 | S30: 5 | T30: 5 | U30: 5 | V30: 5 | W30: 5 | X30: 5 | Y30: 5 | Z30: 5 | AA30: 5 | AB30: 5 | AC30: 5 | AD30: 5 | AE30: 5 | AF30: 5 | AG30: 5 | AH30: 5 | AI30: 5 | AJ30: 5 | AK30: 5 | AL30: 5 | AM30: 5 | AN30: 5 | AO30: 5 | AP30: 5 | AQ30: 5 | AR30: 5 | AS30: 5 | AT30: 5 | AU30: 5 | AV30: 5 | AW30: 5 | AX30: 5 | AY30: 5 | AZ30: 5 | BA30: 5 | BB30: 5 | BC30: 5 | BD30: 5 | BE30: 5 | BF30: 5 | BG30: 5 | BH30: 5 | BI30: 5 | BJ30: 5 | BK30: 5 | BL30: 5 | BM30: 5 | BN30: 5
B31: MMUT | J31: =(J27+J28-J29*0.5)*J30 -> -0.1 | K31: =(K27+K28-K29*0.5)*K30 -> -0.1 | L31: -0.1 | M31: -0.1 | N31: -0.1 | O31: -0.1 | P31: -0.1 | Q31: -0.1 | R31: =(R27+R28-R29*0.5)*R30 -> -0.1 | S31: =(S27+S28-S29*0.5)*S30 -> -0.1 | T31: =(T27+T28-T29*0.5)*T30 -> -0.1 | U31: =(U27+U28-U29*0.5)*U30 -> -0.1 | V31: =(V27+V28-V29*0.5)*V30 -> -0.1 | W31: =(W27+W28-W29*0.5)*W30 -> -0.1 | X31: =(X27+X28-X29*0.5)*X30 -> -0.1 | Y31: =(Y27+Y28-Y29*0.5)*Y30 -> -0.1 | Z31: =(Z27+Z28-Z29*0.5)*Z30 -> -0.1 | AA31: =(AA27+AA28-AA29*0.5)*AA30 -> -0.1 | AB31: =(AB27+AB28-AB29*0.5)*AB30 -> -0.1 | AC31: =(AC27+AC28-AC29*0.5)*AC30 -> -0.1 | AD31: =(AD27+AD28-AD29*0.5)*AD30 -> -0.1 | AE31: =(AE27+AE28-AE29*0.5)*AE30 -> -0.1 | AF31: =(AF27+AF28-AF29*0.5)*AF30 -> -0.1 | AG31: =(AG27+AG28-AG29*0.5)*AG30 -> -0.1 | AH31: =(AH27+AH28-AH29*0.5)*AH30 -> -0.1 | AI31: =(AI27+AI28-AI29*0.5)*AI30 -> -0.1 | AJ31: =(AJ27+AJ28-AJ29*0.5)*AJ30 -> -0.1 | AK31: =(AK27+AK28-AK29*0.5)*AK30 -> -0.1 | AL31: =(AL27+AL28-AL29*0.5)*AL30 -> -0.1 | AM31: =(AM27+AM28-AM29*0.5)*AM30 -> -0.1 | AN31: =(AN27+AN28-AN29*0.5)*AN30 -> -0.1 | AO31: =(AO27+AO28-AO29*0.5)*AO30 -> -0.1 | AP31: =(AP27+AP28-AP29*0.5)*AP30 -> -0.1 | AQ31: =(AQ27+AQ28-AQ29*0.5)*AQ30 -> -0.1 | AR31: =(AR27+AR28-AR29*0.5)*AR30 -> -0.1 | AS31: =(AS27+AS28-AS29*0.5)*AS30 -> -0.1 | AT31: =(AT27+AT28-AT29*0.5)*AT30 -> -0.1 | AU31: =(AU27+AU28-AU29*0.5)*AU30 -> -0.1 | AV31: =(AV27+AV28-AV29*0.5)*AV30 -> -0.1 | AW31: =(AW27+AW28-AW29*0.5)*AW30 -> -0.1 | AX31: =(AX27+AX28-AX29*0.5)*AX30 -> -0.1 | AY31: =(AY27+AY28-AY29*0.5)*AY30 -> -0.1 | AZ31: =(AZ27+AZ28-AZ29*0.5)*AZ30 -> -0.1 | BA31: =(BA27+BA28-BA29*0.5)*BA30 -> -0.1 | BB31: =(BB27+BB28-BB29*0.5)*BB30 -> -0.1 | BC31: =(BC27+BC28-BC29*0.5)*BC30 -> -0.1 | BD31: =(BD27+BD28-BD29*0.5)*BD30 -> -0.1 | BE31: =(BE27+BE28-BE29*0.5)*BE30 -> -0.1 | BF31: =(BF27+BF28-BF29*0.5)*BF30 -> -0.1 | BG31: =(BG27+BG28-BG29*0.5)*BG30 -> -0.1 | BH31: =(BH27+BH28-BH29*0.5)*BH30 -> -0.1 | BI31: =(BI27+BI28-BI29*0.5)*BI30 -> -0.1 | BJ31: =(BJ27+BJ28-BJ29*0.5)*BJ30 -> -0.1 | BK31: =(BK27+BK28-BK29*0.5)*BK30 -> -0.1 | BL31: =(BL27+BL28-BL29*0.5)*BL30 -> -0.1 | BM31: =(BM27+BM28-BM29*0.5)*BM30 -> -0.1 | BN31: =(BN27+BN28-BN29*0.5)*BN30 -> -0.1
B32: Volatility At Expiration | F32: =F29 -> 0.2 | J32: =$F$32*SQRT(J30) -> 0.4472135955 | K32: =$F$32*SQRT(K30) -> 0.4472135955 | L32: 0.4472135955 | M32: 0.4472135955 | N32: 0.4472135955 | O32: 0.4472135955 | P32: 0.4472135955 | Q32: 0.4472135955 | R32: =$F$32*SQRT(R30) -> 0.4472135955 | S32: 0.4472135955 | T32: 0.4472135955 | U32: 0.4472135955 | V32: 0.4472135955 | W32: 0.4472135955 | X32: 0.4472135955 | Y32: 0.4472135955 | Z32: 0.4472135955 | AA32: 0.4472135955 | AB32: 0.4472135955 | AC32: 0.4472135955 | AD32: 0.4472135955 | AE32: 0.4472135955 | AF32: 0.4472135955 | AG32: 0.4472135955 | AH32: 0.4472135955 | AI32: 0.4472135955 | AJ32: 0.4472135955 | AK32: 0.4472135955 | AL32: 0.4472135955 | AM32: 0.4472135955 | AN32: 0.4472135955 | AO32: 0.4472135955 | AP32: 0.4472135955 | AQ32: 0.4472135955 | AR32: 0.4472135955 | AS32: 0.4472135955 | AT32: 0.4472135955 | AU32: 0.4472135955 | AV32: 0.4472135955 | AW32: 0.4472135955 | AX32: 0.4472135955 | AY32: 0.4472135955 | AZ32: 0.4472135955 | BA32: 0.4472135955 | BB32: 0.4472135955 | BC32: 0.4472135955 | BD32: 0.4472135955 | BE32: 0.4472135955 | BF32: 0.4472135955 | BG32: 0.4472135955 | BH32: 0.4472135955 | BI32: 0.4472135955 | BJ32: 0.4472135955 | BK32: 0.4472135955 | BL32: 0.4472135955 | BM32: 0.4472135955 | BN32: 0.4472135955
B33: Change in Price | J33: =EXP(J31+J26*J32) -> 0.3428506752 | K33: =EXP(K31+K26*K32) -> 1.117612449 | L33: 1.043764331 | M33: 1.569977607 | N33: =EXP(N31+N26*N32) -> 0.7088392403 | O33: 0.8848082729 | P33: 0.7658115307 | Q33: 1.147359253 | R33: =EXP(R31+R26*R32) -> 0.8666914871 | S33: =EXP(S31+S26*S32) -> 1.297174602 | T33: =EXP(T31+T26*T32) -> 1.404838047 | U33: =EXP(U31+U26*U32) -> 0.8772513922 | V33: =EXP(V31+V26*V32) -> 0.6141361378 | W33: =EXP(W31+W26*W32) -> 0.8203538635 | X33: =EXP(X31+X26*X32) -> 3.316812561 | Y33: =EXP(Y31+Y26*Y32) -> 0.9849437806 | Z33: =EXP(Z31+Z26*Z32) -> 0.4236241865 | AA33: =EXP(AA31+AA26*AA32) -> 0.6919710484 | AB33: =EXP(AB31+AB26*AB32) -> 0.6165918853 | AC33: =EXP(AC31+AC26*AC32) -> 1.766164344 | AD33: =EXP(AD31+AD26*AD32) -> 0.6316099355 | AE33: =EXP(AE31+AE26*AE32) -> 1.026329011 | AF33: =EXP(AF31+AF26*AF32) -> 0.7979893345 | AG33: =EXP(AG31+AG26*AG32) -> 1.008134493 | AH33: =EXP(AH31+AH26*AH32) -> 1.599348488 | AI33: =EXP(AI31+AI26*AI32) -> 1.491687728 | AJ33: =EXP(AJ31+AJ26*AJ32) -> 2.066346984 | AK33: =EXP(AK31+AK26*AK32) -> 1.206516307 | AL33: =EXP(AL31+AL26*AL32) -> 0.9491551209 | AM33: =EXP(AM31+AM26*AM32) -> 0.8823950475 | AN33: =EXP(AN31+AN26*AN32) -> 0.9728459099 | AO33: =EXP(AO31+AO26*AO32) -> 0.5028997118 | AP33: =EXP(AP31+AP26*AP32) -> 1.209541464 | AQ33: =EXP(AQ31+AQ26*AQ32) -> 1.436258137 | AR33: =EXP(AR31+AR26*AR32) -> 0.6279548675 | AS33: =EXP(AS31+AS26*AS32) -> 0.8269745804 | AT33: =EXP(AT31+AT26*AT32) -> 0.8778973717 | AU33: =EXP(AU31+AU26*AU32) -> 0.9816368473 | AV33: =EXP(AV31+AV26*AV32) -> 1.057926713 | AW33: =EXP(AW31+AW26*AW32) -> 0.878053079 | AX33: =EXP(AX31+AX26*AX32) -> 1.034630546 | AY33: =EXP(AY31+AY26*AY32) -> 1.26296371 | AZ33: =EXP(AZ31+AZ26*AZ32) -> 0.7640992572 | BA33: =EXP(BA31+BA26*BA32) -> 0.7358752053 | BB33: =EXP(BB31+BB26*BB32) -> 0.6239914798 | BC33: =EXP(BC31+BC26*BC32) -> 0.4946923499 | BD33: =EXP(BD31+BD26*BD32) -> 0.4555945078 | BE33: =EXP(BE31+BE26*BE32) -> 0.5207271434 | BF33: =EXP(BF31+BF26*BF32) -> 1.345806969 | BG33: =EXP(BG31+BG26*BG32) -> 1.4311637 | BH33: =EXP(BH31+BH26*BH32) -> 0.9996801946 | BI33: =EXP(BI31+BI26*BI32) -> 0.6306958381 | BJ33: =EXP(BJ31+BJ26*BJ32) -> 0.5987172294 | BK33: =EXP(BK31+BK26*BK32) -> 1.047871803 | BL33: =EXP(BL31+BL26*BL32) -> 1.060479516 | BM33: =EXP(BM31+BM26*BM32) -> 0.7436420897 | BN33: =EXP(BN31+BN26*BN32) -> 1.708898543
B34: Stock Price | F34: =F12 -> 100 | J34: =$F$34*J33 -> 34.28506752 | K34: =$F$34*K33 -> 111.7612449 | L34: 104.3764331 | M34: 156.9977607 | N34: =$F$34*N33 -> 70.88392403 | O34: 88.48082729 | P34: 76.58115307 | Q34: 114.7359253 | R34: =$F$34*R33 -> 86.66914871 | S34: =$F$34*S33 -> 129.7174602 | T34: =$F$34*T33 -> 140.4838047 | U34: =$F$34*U33 -> 87.72513922 | V34: =$F$34*V33 -> 61.41361378 | W34: =$F$34*W33 -> 82.03538635 | X34: =$F$34*X33 -> 331.6812561 | Y34: =$F$34*Y33 -> 98.49437806 | Z34: =$F$34*Z33 -> 42.36241865 | AA34: =$F$34*AA33 -> 69.19710484 | AB34: =$F$34*AB33 -> 61.65918853 | AC34: =$F$34*AC33 -> 176.6164344 | AD34: =$F$34*AD33 -> 63.16099355 | AE34: =$F$34*AE33 -> 102.6329011 | AF34: =$F$34*AF33 -> 79.79893345 | AG34: =$F$34*AG33 -> 100.8134493 | AH34: =$F$34*AH33 -> 159.9348488 | AI34: =$F$34*AI33 -> 149.1687728 | AJ34: =$F$34*AJ33 -> 206.6346984 | AK34: =$F$34*AK33 -> 120.6516307 | AL34: =$F$34*AL33 -> 94.91551209 | AM34: =$F$34*AM33 -> 88.23950475 | AN34: =$F$34*AN33 -> 97.28459099 | AO34: =$F$34*AO33 -> 50.28997118 | AP34: =$F$34*AP33 -> 120.9541464 | AQ34: =$F$34*AQ33 -> 143.6258137 | AR34: =$F$34*AR33 -> 62.79548675 | AS34: =$F$34*AS33 -> 82.69745804 | AT34: =$F$34*AT33 -> 87.78973717 | AU34: =$F$34*AU33 -> 98.16368473 | AV34: =$F$34*AV33 -> 105.7926713 | AW34: =$F$34*AW33 -> 87.8053079 | AX34: =$F$34*AX33 -> 103.4630546 | AY34: =$F$34*AY33 -> 126.296371 | AZ34: =$F$34*AZ33 -> 76.40992572 | BA34: =$F$34*BA33 -> 73.58752053 | BB34: =$F$34*BB33 -> 62.39914798 | BC34: =$F$34*BC33 -> 49.46923499 | BD34: =$F$34*BD33 -> 45.55945078 | BE34: =$F$34*BE33 -> 52.07271434 | BF34: =$F$34*BF33 -> 134.5806969 | BG34: =$F$34*BG33 -> 143.11637 | BH34: =$F$34*BH33 -> 99.96801946 | BI34: =$F$34*BI33 -> 63.06958381 | BJ34: =$F$34*BJ33 -> 59.87172294 | BK34: =$F$34*BK33 -> 104.7871803 | BL34: =$F$34*BL33 -> 106.0479516 | BM34: =$F$34*BM33 -> 74.36420897 | BN34: =$F$34*BN33 -> 170.8898543
B36: Discrete | F36: =F32 -> 0.2 | I36: =F34 -> 100 | J36: =I36+I36*$F$36*NORMSINV(J25) -> 56.59969708 | K36: =J36+J36*$F$36*NORMSINV(K25) -> 61.94548904 | L36: 65.90239249 | M36: 82.1435185 | N36: 73.17536033 | O36: 72.44283382 | P36: 67.03832265 | Q36: 74.15757009 | R36: =Q36+Q36*$F$36*NORMSINV(R25) -> 72.7291117 | S36: 84.44440438 | T36: 101.0579215 | U36: 99.65862466 | V36: 82.38653386 | W36: 78.77506668 | X36: 124.5380522 | Y36: 129.2626285 | Z36: 85.39163826 | AA36: 75.14910953 | AB36: 62.25894463 | AC36: 80.88065693 | AD36: 67.8778131 | AE36: 71.70230102 | AF36: 67.67285532 | AG36: 70.9444656 | AH36: 89.01623675 | AI36: 108.9172172 | AJ36: 149.1404625 | AK36: 168.3318502 | AL36: 171.9315252 | AM36: 170.0003974 | AN36: 175.5100693 | AO36: 129.4075417 | AP36: 146.2046237 | AQ36: 176.4150479 | AR36: 147.5956555 | AS36: 141.6562779 | AT36: 139.7414688 | AU36: 144.8326377 | AV36: 154.9570809 | AW36: 152.8747711 | AX36: 162.0390754 | AY36: 186.203694 | AZ36: 172.1257919 | BA36: 156.2150527 | BB36: 130.253224 | BC36: 95.08014271 | BD36: 65.90417826 | BE36: 49.61935325 | BF36: 58.42882428 | BG36: 70.4091883 | BH36: 73.5479113 | BI36: 61.67628533 | BJ36: 50.28566542 | BK36: 53.58609605 | BL36: 57.38975875 | BM36: 52.354309 | BN36: 67.24179777
B38: Exercise Price - Continuous | F38: =F13 -> 100 | J38: =$F$38 -> 100 | K38: =$F$38 -> 100 | L38: 100 | M38: 100 | N38: 100 | O38: 100 | P38: 100 | Q38: 100 | R38: 100 | S38: 100 | T38: 100 | U38: 100 | V38: 100 | W38: 100 | X38: 100 | Y38: 100 | Z38: 100 | AA38: 100 | AB38: 100 | AC38: 100 | AD38: 100 | AE38: 100 | AF38: 100 | AG38: 100 | AH38: 100 | AI38: 100 | AJ38: 100 | AK38: 100 | AL38: 100 | AM38: 100 | AN38: 100 | AO38: 100 | AP38: 100 | AQ38: 100 | AR38: 100 | AS38: 100 | AT38: 100 | AU38: 100 | AV38: 100 | AW38: 100 | AX38: 100 | AY38: 100 | AZ38: 100 | BA38: 100 | BB38: 100 | BC38: 100 | BD38: 100 | BE38: 100 | BF38: 100 | BG38: 100 | BH38: 100 | BI38: 100 | BJ38: 100 | BK38: 100 | BL38: 100 | BM38: 100 | BN38: 100
B39: Call Value at Expiration - Continuous | J39: =MAX(J34-J38,0) -> 0 | K39: =MAX(K34-K38,0) -> 11.76124489 | L39: 4.376433084 | M39: 56.9977607 | N39: 0 | O39: 0 | P39: 0 | Q39: 14.73592531 | R39: =MAX(R34-R38,0) -> 0 | S39: =MAX(S34-S38,0) -> 29.71746018 | T39: =MAX(T34-T38,0) -> 40.48380467 | U39: =MAX(U34-U38,0) -> 0 | V39: =MAX(V34-V38,0) -> 0 | W39: =MAX(W34-W38,0) -> 0 | X39: =MAX(X34-X38,0) -> 231.6812561 | Y39: =MAX(Y34-Y38,0) -> 0 | Z39: =MAX(Z34-Z38,0) -> 0 | AA39: =MAX(AA34-AA38,0) -> 0 | AB39: =MAX(AB34-AB38,0) -> 0 | AC39: =MAX(AC34-AC38,0) -> 76.61643435 | AD39: =MAX(AD34-AD38,0) -> 0 | AE39: =MAX(AE34-AE38,0) -> 2.632901137 | AF39: =MAX(AF34-AF38,0) -> 0 | AG39: =MAX(AG34-AG38,0) -> 0.8134492721 | AH39: =MAX(AH34-AH38,0) -> 59.93484884 | AI39: =MAX(AI34-AI38,0) -> 49.16877277 | AJ39: =MAX(AJ34-AJ38,0) -> 106.6346984 | AK39: =MAX(AK34-AK38,0) -> 20.65163071 | AL39: =MAX(AL34-AL38,0) -> 0 | AM39: =MAX(AM34-AM38,0) -> 0 | AN39: =MAX(AN34-AN38,0) -> 0 | AO39: =MAX(AO34-AO38,0) -> 0 | AP39: =MAX(AP34-AP38,0) -> 20.95414637 | AQ39: =MAX(AQ34-AQ38,0) -> 43.62581374 | AR39: =MAX(AR34-AR38,0) -> 0 | AS39: =MAX(AS34-AS38,0) -> 0 | AT39: =MAX(AT34-AT38,0) -> 0 | AU39: =MAX(AU34-AU38,0) -> 0 | AV39: =MAX(AV34-AV38,0) -> 5.792671292 | AW39: =MAX(AW34-AW38,0) -> 0 | AX39: =MAX(AX34-AX38,0) -> 3.463054594 | AY39: =MAX(AY34-AY38,0) -> 26.29637101 | AZ39: =MAX(AZ34-AZ38,0) -> 0 | BA39: =MAX(BA34-BA38,0) -> 0 | BB39: =MAX(BB34-BB38,0) -> 0 | BC39: =MAX(BC34-BC38,0) -> 0 | BD39: =MAX(BD34-BD38,0) -> 0 | BE39: =MAX(BE34-BE38,0) -> 0 | BF39: =MAX(BF34-BF38,0) -> 34.58069686 | BG39: =MAX(BG34-BG38,0) -> 43.11637002 | BH39: =MAX(BH34-BH38,0) -> 0 | BI39: =MAX(BI34-BI38,0) -> 0 | BJ39: =MAX(BJ34-BJ38,0) -> 0 | BK39: =MAX(BK34-BK38,0) -> 4.787180258 | BL39: =MAX(BL34-BL38,0) -> 6.047951579 | BM39: =MAX(BM34-BM38,0) -> 0 | BN39: =MAX(BN34-BN38,0) -> 70.88985428
B41: Exercise - Price Put - Continuous | F41: =F13 -> 100 | J41: =$F$41 -> 100 | K41: =$F$41 -> 100 | L41: 100 | M41: 100 | N41: 100 | O41: 100 | P41: 100 | Q41: 100 | R41: 100 | S41: 100 | T41: 100 | U41: 100 | V41: 100 | W41: 100 | X41: 100 | Y41: 100 | Z41: 100 | AA41: 100 | AB41: 100 | AC41: 100 | AD41: 100 | AE41: 100 | AF41: 100 | AG41: 100 | AH41: 100 | AI41: 100 | AJ41: 100 | AK41: 100 | AL41: 100 | AM41: 100 | AN41: 100 | AO41: 100 | AP41: 100 | AQ41: 100 | AR41: 100 | AS41: 100 | AT41: 100 | AU41: 100 | AV41: 100 | AW41: 100 | AX41: 100 | AY41: 100 | AZ41: 100 | BA41: 100 | BB41: 100 | BC41: 100 | BD41: 100 | BE41: 100 | BF41: 100 | BG41: 100 | BH41: 100 | BI41: 100 | BJ41: 100 | BK41: 100 | BL41: 100 | BM41: 100 | BN41: 100
B42: Put Value at Exipiration - Continuous | J42: =MAX(J41-J34,0) -> 65.71493248 | K42: =MAX(K41-K34,0) -> 0 | L42: 0 | M42: 0 | N42: 29.11607597 | O42: 11.51917271 | P42: 23.41884693 | Q42: 0 | R42: =MAX(R41-R34,0) -> 13.33085129 | S42: =MAX(S41-S34,0) -> 0 | T42: =MAX(T41-T34,0) -> 0 | U42: =MAX(U41-U34,0) -> 12.27486078 | V42: =MAX(V41-V34,0) -> 38.58638622 | W42: =MAX(W41-W34,0) -> 17.96461365 | X42: =MAX(X41-X34,0) -> 0 | Y42: =MAX(Y41-Y34,0) -> 1.505621938 | Z42: =MAX(Z41-Z34,0) -> 57.63758135 | AA42: =MAX(AA41-AA34,0) -> 30.80289516 | AB42: =MAX(AB41-AB34,0) -> 38.34081147 | AC42: =MAX(AC41-AC34,0) -> 0 | AD42: =MAX(AD41-AD34,0) -> 36.83900645 | AE42: =MAX(AE41-AE34,0) -> 0 | AF42: =MAX(AF41-AF34,0) -> 20.20106655 | AG42: =MAX(AG41-AG34,0) -> 0 | AH42: =MAX(AH41-AH34,0) -> 0 | AI42: =MAX(AI41-AI34,0) -> 0 | AJ42: =MAX(AJ41-AJ34,0) -> 0 | AK42: =MAX(AK41-AK34,0) -> 0 | AL42: =MAX(AL41-AL34,0) -> 5.08448791 | AM42: =MAX(AM41-AM34,0) -> 11.76049525 | AN42: =MAX(AN41-AN34,0) -> 2.71540901 | AO42: =MAX(AO41-AO34,0) -> 49.71002882 | AP42: =MAX(AP41-AP34,0) -> 0 | AQ42: =MAX(AQ41-AQ34,0) -> 0 | AR42: =MAX(AR41-AR34,0) -> 37.20451325 | AS42: =MAX(AS41-AS34,0) -> 17.30254196 | AT42: =MAX(AT41-AT34,0) -> 12.21026283 | AU42: =MAX(AU41-AU34,0) -> 1.836315269 | AV42: =MAX(AV41-AV34,0) -> 0 | AW42: =MAX(AW41-AW34,0) -> 12.1946921 | AX42: =MAX(AX41-AX34,0) -> 0 | AY42: =MAX(AY41-AY34,0) -> 0 | AZ42: =MAX(AZ41-AZ34,0) -> 23.59007428 | BA42: =MAX(BA41-BA34,0) -> 26.41247947 | BB42: =MAX(BB41-BB34,0) -> 37.60085202 | BC42: =MAX(BC41-BC34,0) -> 50.53076501 | BD42: =MAX(BD41-BD34,0) -> 54.44054922 | BE42: =MAX(BE41-BE34,0) -> 47.92728566 | BF42: =MAX(BF41-BF34,0) -> 0 | BG42: =MAX(BG41-BG34,0) -> 0 | BH42: =MAX(BH41-BH34,0) -> 0.03198053692 | BI42: =MAX(BI41-BI34,0) -> 36.93041619 | BJ42: =MAX(BJ41-BJ34,0) -> 40.12827706 | BK42: =MAX(BK41-BK34,0) -> 0 | BL42: =MAX(BL41-BL34,0) -> 0 | BM42: =MAX(BM41-BM34,0) -> 25.63579103 | BN42: =MAX(BN41-BN34,0) -> 0
B44: PV Factor - Continuous | F44: =F15 -> 0 | J44: =EXP(-$F$44*J24) -> 1 | K44: =EXP(-$F$44*K24) -> 1 | L44: 1 | M44: 1 | N44: 1 | O44: 1 | P44: 1 | Q44: 1 | R44: =EXP(-$F$44*R24) -> 1 | S44: 1 | T44: 1 | U44: 1 | V44: 1 | W44: 1 | X44: 1 | Y44: 1 | Z44: 1 | AA44: 1 | AB44: 1 | AC44: 1 | AD44: 1 | AE44: 1 | AF44: 1 | AG44: 1 | AH44: 1 | AI44: 1 | AJ44: 1 | AK44: 1 | AL44: 1 | AM44: 1 | AN44: 1 | AO44: 1 | AP44: 1 | AQ44: 1 | AR44: 1 | AS44: 1 | AT44: 1 | AU44: 1 | AV44: 1 | AW44: 1 | AX44: 1 | AY44: 1 | AZ44: 1 | BA44: 1 | BB44: 1 | BC44: 1 | BD44: 1 | BE44: 1 | BF44: 1 | BG44: 1 | BH44: 1 | BI44: 1 | BJ44: 1 | BK44: 1 | BL44: 1 | BM44: 1 | BN44: 1
B45: Call Value | J45: =J39*J44*J22 -> 0 | K45: =K39*K44*K22 -> 0 | L45: 0 | M45: 0 | N45: 0 | O45: 0 | P45: 0 | Q45: 0 | R45: =R39*R44*R22 -> 0 | S45: =S39*S44*S22 -> 0 | T45: =T39*T44*T22 -> 0 | U45: =U39*U44*U22 -> 0 | V45: =V39*V44*V22 -> 0 | W45: =W39*W44*W22 -> 0 | X45: =X39*X44*X22 -> 0 | Y45: =Y39*Y44*Y22 -> 0 | Z45: =Z39*Z44*Z22 -> 0 | AA45: =AA39*AA44*AA22 -> 0 | AB45: =AB39*AB44*AB22 -> 0 | AC45: =AC39*AC44*AC22 -> 0 | AD45: =AD39*AD44*AD22 -> 0 | AE45: =AE39*AE44*AE22 -> 0 | AF45: =AF39*AF44*AF22 -> 0 | AG45: =AG39*AG44*AG22 -> 0 | AH45: =AH39*AH44*AH22 -> 0 | AI45: =AI39*AI44*AI22 -> 0 | AJ45: =AJ39*AJ44*AJ22 -> 0 | AK45: =AK39*AK44*AK22 -> 0 | AL45: =AL39*AL44*AL22 -> 0 | AM45: =AM39*AM44*AM22 -> 0 | AN45: =AN39*AN44*AN22 -> 0 | AO45: =AO39*AO44*AO22 -> 0 | AP45: =AP39*AP44*AP22 -> 0 | AQ45: =AQ39*AQ44*AQ22 -> 0 | AR45: =AR39*AR44*AR22 -> 0 | AS45: =AS39*AS44*AS22 -> 0 | AT45: =AT39*AT44*AT22 -> 0 | AU45: =AU39*AU44*AU22 -> 0 | AV45: =AV39*AV44*AV22 -> 0 | AW45: =AW39*AW44*AW22 -> 0 | AX45: =AX39*AX44*AX22 -> 0 | AY45: =AY39*AY44*AY22 -> 0 | AZ45: =AZ39*AZ44*AZ22 -> 0 | BA45: =BA39*BA44*BA22 -> 0 | BB45: =BB39*BB44*BB22 -> 0 | BC45: =BC39*BC44*BC22 -> 0 | BD45: =BD39*BD44*BD22 -> 0 | BE45: =BE39*BE44*BE22 -> 0 | BF45: =BF39*BF44*BF22 -> 0 | BG45: =BG39*BG44*BG22 -> 0 | BH45: =BH39*BH44*BH22 -> 0 | BI45: =BI39*BI44*BI22 -> 0 | BJ45: =BJ39*BJ44*BJ22 -> 0 | BK45: =BK39*BK44*BK22 -> 0 | BL45: =BL39*BL44*BL22 -> 0 | BM45: =BM39*BM44*BM22 -> 0 | BN45: =BN39*BN44*BN22 -> 0
B46: Put Value | J46: =J42*J44*J22 -> 0 | K46: =K42*K44*K22 -> 0 | L46: 0 | M46: 0 | N46: 29.11607597 | O46: 0 | P46: 0 | Q46: 0 | R46: =R42*R44*R22 -> 0 | S46: 0 | T46: 0 | U46: 0 | V46: 0 | W46: 0 | X46: 0 | Y46: 0 | Z46: 0 | AA46: 0 | AB46: 0 | AC46: 0 | AD46: 0 | AE46: 0 | AF46: 0 | AG46: 0 | AH46: 0 | AI46: 0 | AJ46: 0 | AK46: 0 | AL46: 0 | AM46: 0 | AN46: 0 | AO46: 0 | AP46: 0 | AQ46: 0 | AR46: 0 | AS46: 0 | AT46: 0 | AU46: 0 | AV46: 0 | AW46: 0 | AX46: 0 | AY46: 0 | AZ46: 0 | BA46: 0 | BB46: 0 | BC46: 0 | BD46: 0 | BE46: 0 | BF46: 0 | BG46: 0 | BH46: 0 | BI46: 0 | BJ46: 0 | BK46: 0 | BL46: 0 | BM46: 0 | BN46: 0
B48: Nominal Call Value - Discrete | J48: =MAX(J36-J38,0)*J22 -> 0 | K48: =MAX(K36-K38,0)*K22 -> 0 | L48: 0 | M48: 0 | N48: 0 | O48: 0 | P48: 0 | Q48: 0 | R48: 0 | S48: 0 | T48: 0 | U48: 0 | V48: 0 | W48: 0 | X48: 0 | Y48: 0 | Z48: 0 | AA48: 0 | AB48: 0 | AC48: 0 | AD48: 0 | AE48: 0 | AF48: 0 | AG48: 0 | AH48: 0 | AI48: 0 | AJ48: 0 | AK48: 0 | AL48: 0 | AM48: 0 | AN48: 0 | AO48: 0 | AP48: 0 | AQ48: 0 | AR48: 0 | AS48: 0 | AT48: 0 | AU48: 0 | AV48: 0 | AW48: 0 | AX48: 0 | AY48: 0 | AZ48: 0 | BA48: 0 | BB48: 0 | BC48: 0 | BD48: 0 | BE48: 0 | BF48: 0 | BG48: 0 | BH48: 0 | BI48: 0 | BJ48: 0 | BK48: 0 | BL48: 0 | BM48: 0 | BN48: 0
B49: Nominal Put Value - Discrete | J49: =MAX(J41-J36,0)*J22 -> 0 | K49: =MAX(K41-K36,0)*K22 -> 0 | L49: 0 | M49: 0 | N49: 26.82463967 | O49: 0 | P49: 0 | Q49: 0 | R49: 0 | S49: 0 | T49: 0 | U49: 0 | V49: 0 | W49: 0 | X49: 0 | Y49: 0 | Z49: 0 | AA49: 0 | AB49: 0 | AC49: 0 | AD49: 0 | AE49: 0 | AF49: 0 | AG49: 0 | AH49: 0 | AI49: 0 | AJ49: 0 | AK49: 0 | AL49: 0 | AM49: 0 | AN49: 0 | AO49: 0 | AP49: 0 | AQ49: 0 | AR49: 0 | AS49: 0 | AT49: 0 | AU49: 0 | AV49: 0 | AW49: 0 | AX49: 0 | AY49: 0 | AZ49: 0 | BA49: 0 | BB49: 0 | BC49: 0 | BD49: 0 | BE49: 0 | BF49: 0 | BG49: 0 | BH49: 0 | BI49: 0 | BJ49: 0 | BK49: 0 | BL49: 0 | BM49: 0 | BN49: 0
B51: Current Call Value - Discrete | J51: =J48/J44 -> 0 | K51: =K48/K44 -> 0 | L51: 0 | M51: 0 | N51: 0 | O51: 0 | P51: 0 | Q51: 0 | R51: 0 | S51: 0 | T51: 0 | U51: 0 | V51: 0 | W51: 0 | X51: 0 | Y51: 0 | Z51: 0 | AA51: 0 | AB51: 0 | AC51: 0 | AD51: 0 | AE51: 0 | AF51: 0 | AG51: 0 | AH51: 0 | AI51: 0 | AJ51: 0 | AK51: 0 | AL51: 0 | AM51: 0 | AN51: 0 | AO51: 0 | AP51: 0 | AQ51: 0 | AR51: 0 | AS51: 0 | AT51: 0 | AU51: 0 | AV51: 0 | AW51: 0 | AX51: 0 | AY51: 0 | AZ51: 0 | BA51: 0 | BB51: 0 | BC51: 0 | BD51: 0 | BE51: 0 | BF51: 0 | BG51: 0 | BH51: 0 | BI51: 0 | BJ51: 0 | BK51: 0 | BL51: 0 | BM51: 0 | BN51: 0
B52: Current Put Value - Discrete | J52: =J49/J44 -> 0 | K52: =K49/K44 -> 0 | L52: 0 | M52: 0 | N52: 26.82463967 | O52: 0 | P52: 0 | Q52: 0 | R52: 0 | S52: 0 | T52: 0 | U52: 0 | V52: 0 | W52: 0 | X52: 0 | Y52: 0 | Z52: 0 | AA52: 0 | AB52: 0 | AC52: 0 | AD52: 0 | AE52: 0 | AF52: 0 | AG52: 0 | AH52: 0 | AI52: 0 | AJ52: 0 | AK52: 0 | AL52: 0 | AM52: 0 | AN52: 0 | AO52: 0 | AP52: 0 | AQ52: 0 | AR52: 0 | AS52: 0 | AT52: 0 | AU52: 0 | AV52: 0 | AW52: 0 | AX52: 0 | AY52: 0 | AZ52: 0 | BA52: 0 | BB52: 0 | BC52: 0 | BD52: 0 | BE52: 0 | BF52: 0 | BG52: 0 | BH52: 0 | BI52: 0 | BJ52: 0 | BK52: 0 | BL52: 0 | BM52: 0 | BN52: 0
I56: BS Value | K56: ='Case 1'!E7 -> 17.69367262 | L56: =K56 -> 17.69367262 | N56: =L56 -> 17.69367262 | O56: =N56 -> 17.69367262
I57: Pct Diff | K57: =K59/K56-1 -> 0.001290405407 | L57: =L59/L56-1 -> 0.005572591594 | N57: =N59/N56-1 -> 0.01470254532 | O57: =O59/O56-1 -> 0.02445803767
I59: Average | J59: =AVERAGE(J64:J1048576) -> 99.9242324 | K59: =AVERAGE(K64:K1048576) -> 17.71650464 | L59: 17.79227224 | M59: 99.82738951 | N59: 17.95381465 | O59: 18.12642514
I60: Row | J60: =ROW(J64) -> 64
I61: Col | J61: =COLUMN() -> 10
J62: Stock | K62: Put | L62: Call
J64: 87.71107263 | K64: 0 | L64: 12.28892737 | M64: 110.4881938 | N64: 10.48819378 | O64: 0
J65: 29.49315694 | K65: 0 | L65: 70.50684306 | M65: 76.38863795 | N65: 0 | O65: 23.61136205
J66: 130.3993418 | K66: 30.39934182 | L66: 0 | M66: 225.0803165 | N66: 125.0803165 | O66: 0
J67: 160.9995806 | K67: 60.99958057 | L67: 0 | M67: 253.6690163 | N67: 153.6690163 | O67: 0
J68: 168.2962701 | K68: 68.29627006 | L68: 0 | M68: 102.2449424 | N68: 2.244942361 | O68: 0
J69: 59.45486097 | K69: 0 | L69: 40.54513903 | M69: 65.56351921 | N69: 0 | O69: 34.43648079
J70: 47.25606706 | K70: 0 | L70: 52.74393294 | M70: 69.51606995 | N70: 0 | O70: 30.48393005
J71: 130.5700381 | K71: 30.57003814 | L71: 0 | M71: 149.2244442 | N71: 49.22444422 | O71: 0
J72: 127.3509663 | K72: 27.35096627 | L72: 0 | M72: 48.43331467 | N72: 0 | O72: 51.56668533
J73: 74.18941592 | K73: 0 | L73: 25.81058408 | M73: 109.8373191 | N73: 9.837319098 | O73: 0
J74: 194.7329632 | K74: 94.73296317 | L74: 0 | M74: 90.59809255 | N74: 0 | O74: 9.401907451
J75: 147.6401703 | K75: 47.64017029 | L75: 0 | M75: 91.62269483 | N75: 0 | O75: 8.37730517
J76: 164.2662726 | K76: 64.26627262 | L76: 0 | M76: 168.6095807 | N76: 68.60958068 | O76: 0
J77: 92.2936537 | K77: 0 | L77: 7.706346303 | M77: 51.92741189 | N77: 0 | O77: 48.07258811
J78: 110.0183404 | K78: 10.01834039 | L78: 0 | M78: 94.54802624 | N78: 0 | O78: 5.451973757
J79: 63.93560334 | K79: 0 | L79: 36.06439666 | M79: 133.2940543 | N79: 33.29405426 | O79: 0
J80: 66.71422141 | K80: 0 | L80: 33.28577859 | M80: 69.82336152 | N80: 0 | O80: 30.17663848
J81: 56.74401189 | K81: 0 | L81: 43.25598811 | M81: 43.52001744 | N81: 0 | O81: 56.47998256
J82: 101.8088498 | K82: 1.80884977 | L82: 0 | M82: 137.8657636 | N82: 37.86576358 | O82: 0
J83: 164.0315861 | K83: 64.03158614 | L83: 0 | M83: 242.1415331 | N83: 142.1415331 | O83: 0
J84: 127.3486192 | K84: 27.34861921 | L84: 0 | M84: 133.5902864 | N84: 33.59028636 | O84: 0
J85: 112.9374786 | K85: 12.93747861 | L85: 0 | M85: 100.8003335 | N85: 0.8003334846 | O85: 0
J86: 98.76361649 | K86: 0 | L86: 1.236383515 | M86: 274.6389108 | N86: 174.6389108 | O86: 0
J87: 102.2535839 | K87: 2.253583856 | L87: 0 | M87: 104.1407381 | N87: 4.140738073 | O87: 0
J88: 50.48627467 | K88: 0 | L88: 49.51372533 | M88: 70.71692535 | N88: 0 | O88: 29.28307465
J89: 101.1568654 | K89: 1.156865426 | L89: 0 | M89: 76.1676711 | N89: 0 | O89: 23.8323289
J90: 137.0154439 | K90: 37.01544392 | L90: 0 | M90: 83.78536874 | N90: 0 | O90: 16.21463126
J91: 135.6760026 | K91: 35.67600258 | L91: 0 | M91: 82.52139884 | N91: 0 | O91: 17.47860116
J92: 92.39530543 | K92: 0 | L92: 7.60469457 | M92: 81.47877775 | N92: 0 | O92: 18.52122225
J93: 114.7614051 | K93: 14.76140505 | L93: 0 | M93: 77.61389583 | N93: 0 | O93: 22.38610417
J94: 69.69910683 | K94: 0 | L94: 30.30089317 | M94: 66.22146939 | N94: 0 | O94: 33.77853061
J95: 168.4924143 | K95: 68.49241428 | L95: 0 | M95: 239.5106172 | N95: 139.5106172 | O95: 0
J96: 65.17208014 | K96: 0 | L96: 34.82791986 | M96: 59.82622222 | N96: 0 | O96: 40.17377778
J97: 81.01361076 | K97: 0 | L97: 18.98638924 | M97: 55.91872839 | N97: 0 | O97: 44.08127161
J98: 92.93470489 | K98: 0 | L98: 7.06529511 | M98: 102.4653827 | N98: 2.465382653 | O98: 0
J99: 118.0572439 | K99: 18.05724386 | L99: 0 | M99: 62.47579726 | N99: 0 | O99: 37.52420274
J100: 39.43407485 | K100: 0 | L100: 60.56592515 | M100: 42.04562882 | N100: 0 | O100: 57.95437118
J101: 70.00688747 | K101: 0 | L101: 29.99311253 | M101: 111.3606398 | N101: 11.36063977 | O101: 0
J102: 56.64091464 | K102: 0 | L102: 43.35908536 | M102: 60.96660219 | N102: 0 | O102: 39.03339781
J103: 44.42627335 | K103: 0 | L103: 55.57372665 | M103: 30.82950615 | N103: 0 | O103: 69.17049385
J104: 68.63050811 | K104: 0 | L104: 31.36949189 | M104: 82.44136624 | N104: 0 | O104: 17.55863376
J105: 137.36344 | K105: 37.36344001 | L105: 0 | M105: 157.6163235 | N105: 57.61632348 | O105: 0
J106: 83.27731965 | K106: 0 | L106: 16.72268035 | M106: 71.55642188 | N106: 0 | O106: 28.44357812
J107: 141.0067696 | K107: 41.00676957 | L107: 0 | M107: 93.18997503 | N107: 0 | O107: 6.810024974
J108: 236.8311857 | K108: 136.8311857 | L108: 0 | M108: 151.0784684 | N108: 51.07846837 | O108: 0
J109: 79.99269105 | K109: 0 | L109: 20.00730895 | M109: 148.2168205 | N109: 48.21682054 | O109: 0
J110: 51.78984587 | K110: 0 | L110: 48.21015413 | M110: 123.6768016 | N110: 23.67680162 | O110: 0
J111: 121.6231792 | K111: 21.6231792 | L111: 0 | M111: 55.71495012 | N111: 0 | O111: 44.28504988
J112: 83.99610947 | K112: 0 | L112: 16.00389053 | M112: 269.9755426 | N112: 169.9755426 | O112: 0
J113: 117.6723238 | K113: 17.67232385 | L113: 0 | M113: 125.3368717 | N113: 25.33687173 | O113: 0
J114: 157.807502 | K114: 57.80750197 | L114: 0 | M114: 207.6892933 | N114: 107.6892933 | O114: 0
J115: 142.0978329 | K115: 42.09783289 | L115: 0 | M115: 107.3996131 | N115: 7.399613077 | O115: 0
J116: 115.7173037 | K116: 15.7173037 | L116: 0 | M116: 143.354984 | N116: 43.35498399 | O116: 0
J117: 127.8181829 | K117: 27.81818293 | L117: 0 | M117: 196.4382876 | N117: 96.4382876 | O117: 0
J118: 50.26130863 | K118: 0 | L118: 49.73869137 | M118: 52.10856622 | N118: 0 | O118: 47.89143378
J119: 127.4085033 | K119: 27.40850333 | L119: 0 | M119: 144.5147289 | N119: 44.51472888 | O119: 0
J120: 67.23616053 | K120: 0 | L120: 32.76383947 | M120: 91.79483217 | N120: 0 | O120: 8.205167835
J121: 109.1190887 | K121: 9.119088749 | L121: 0 | M121: 170.4015837 | N121: 70.40158369 | O121: 0
J122: 127.7898435 | K122: 27.78984352 | L122: 0 | M122: 162.8547071 | N122: 62.85470711 | O122: 0
J123: 104.3301443 | K123: 4.330144332 | L123: 0 | M123: 93.60753633 | N123: 0 | O123: 6.392463665
J124: 100.057755 | K124: 0.05775498123 | L124: 0 | M124: 135.9350077 | N124: 35.93500771 | O124: 0
J125: 59.76516965 | K125: 0 | L125: 40.23483035 | M125: 99.59197305 | N125: 0 | O125: 0.4080269472
J126: 82.64628725 | K126: 0 | L126: 17.35371275 | M126: 157.3563313 | N126: 57.35633134 | O126: 0
J127: 63.89537713 | K127: 0 | L127: 36.10462287 | M127: 58.16351489 | N127: 0 | O127: 41.83648511
J128: 121.5877641 | K128: 21.58776405 | L128: 0 | M128: 90.87367652 | N128: 0 | O128: 9.126323477
J129: 269.7983832 | K129: 169.7983832 | L129: 0 | M129: 149.4233337 | N129: 49.42333369 | O129: 0
J130: 204.2494489 | K130: 104.2494489 | L130: 0 | M130: 84.96535085 | N130: 0 | O130: 15.03464915
J131: 55.97296348 | K131: 0 | L131: 44.02703652 | M131: 121.4018816 | N131: 21.40188164 | O131: 0
J132: 68.43527484 | K132: 0 | L132: 31.56472516 | M132: 94.8002855 | N132: 0 | O132: 5.199714498
J133: 72.94839623 | K133: 0 | L133: 27.05160377 | M133: 126.6391406 | N133: 26.63914065 | O133: 0
J134: 168.4375302 | K134: 68.43753022 | L134: 0 | M134: 134.6409418 | N134: 34.64094178 | O134: 0
J135: 72.46767288 | K135: 0 | L135: 27.53232712 | M135: 72.39846109 | N135: 0 | O135: 27.60153891
J136: 141.8061658 | K136: 41.80616581 | L136: 0 | M136: 153.5751256 | N136: 53.57512561 | O136: 0
J137: 91.33189094 | K137: 0 | L137: 8.668109057 | M137: 38.94718343 | N137: 0 | O137: 61.05281657
J138: 67.15801297 | K138: 0 | L138: 32.84198703 | M138: 102.9686949 | N138: 2.968694926 | O138: 0
J139: 45.87941233 | K139: 0 | L139: 54.12058767 | M139: 61.58471558 | N139: 0 | O139: 38.41528442
J140: 92.41478697 | K140: 0 | L140: 7.585213025 | M140: 79.58834388 | N140: 0 | O140: 20.41165612
J141: 65.21362707 | K141: 0 | L141: 34.78637293 | M141: 59.68287591 | N141: 0 | O141: 40.31712409
J142: 131.1578971 | K142: 31.15789711 | L142: 0 | M142: 102.5764312 | N142: 2.576431185 | O142: 0
J143: 41.54481425 | K143: 0 | L143: 58.45518575 | M143: 78.9841475 | N143: 0 | O143: 21.0158525
J144: 82.19646758 | K144: 0 | L144: 17.80353242 | M144: 101.7031977 | N144: 1.703197675 | O144: 0
J145: 153.4151757 | K145: 53.41517568 | L145: 0 | M145: 130.0188619 | N145: 30.01886194 | O145: 0
J146: 124.3691937 | K146: 24.36919368 | L146: 0 | M146: 122.2282667 | N146: 22.22826666 | O146: 0
J147: 43.35310569 | K147: 0 | L147: 56.64689431 | M147: 103.3049817 | N147: 3.304981699 | O147: 0
J148: 83.90606699 | K148: 0 | L148: 16.09393301 | M148: 112.7439126 | N148: 12.7439126 | O148: 0
J149: 29.58178515 | K149: 0 | L149: 70.41821485 | M149: 78.77631049 | N149: 0 | O149: 21.22368951
J150: 99.17315825 | K150: 0 | L150: 0.8268417546 | M150: 170.3013954 | N150: 70.30139543 | O150: 0
J151: 136.9798633 | K151: 36.97986333 | L151: 0 | M151: 65.89858035 | N151: 0 | O151: 34.10141965
J152: 103.3786072 | K152: 3.378607189 | L152: 0 | M152: 184.0797707 | N152: 84.0797707 | O152: 0
J153: 208.0802806 | K153: 108.0802806 | L153: 0 | M153: 60.21397113 | N153: 0 | O153: 39.78602887
J154: 141.206754 | K154: 41.20675398 | L154: 0 | M154: 59.79640681 | N154: 0 | O154: 40.20359319
J155: 113.3574884 | K155: 13.35748844 | L155: 0 | M155: 57.3212138 | N155: 0 | O155: 42.6787862
J156: 87.95984988 | K156: 0 | L156: 12.04015012 | M156: 175.6605121 | N156: 75.66051214 | O156: 0
J157: 148.4361741 | K157: 48.4361741 | L157: 0 | M157: 105.5297809 | N157: 5.529780864 | O157: 0
J158: 117.0303121 | K158: 17.03031208 | L158: 0 | M158: 67.74717821 | N158: 0 | O158: 32.25282179
J159: 146.5819382 | K159: 46.58193817 | L159: 0 | M159: 107.847297 | N159: 7.847297035 | O159: 0
J160: 86.33905817 | K160: 0 | L160: 13.66094183 | M160: 102.6542835 | N160: 2.654283537 | O160: 0
J161: 152.4328382 | K161: 52.43283825 | L161: 0 | M161: 70.49691198 | N161: 0 | O161: 29.50308802
J162: 70.7224475 | K162: 0 | L162: 29.2775525 | M162: 164.5783173 | N162: 64.57831732 | O162: 0
J163: 55.6799623 | K163: 0 | L163: 44.3200377 | M163: 76.04052731 | N163: 0 | O163: 23.95947269
J164: 92.90838656 | K164: 0 | L164: 7.091613438 | M164: 123.0175059 | N164: 23.01750587 | O164: 0
J165: 131.1437432 | K165: 31.14374322 | L165: 0 | M165: 74.65161667 | N165: 0 | O165: 25.34838333
J166: 201.0776933 | K166: 101.0776933 | L166: 0 | M166: 95.4407005 | N166: 0 | O166: 4.559299505
J167: 83.98591422 | K167: 0 | L167: 16.01408578 | M167: 97.08232145 | N167: 0 | O167: 2.917678549
J168: 62.71615393 | K168: 0 | L168: 37.28384607 | M168: 97.37091644 | N168: 0 | O168: 2.629083558
J169: 61.63338168 | K169: 0 | L169: 38.36661832 | M169: 88.69779118 | N169: 0 | O169: 11.30220882
J170: 82.6953138 | K170: 0 | L170: 17.3046862 | M170: 116.2945348 | N170: 16.29453483 | O170: 0
J171: 236.2313223 | K171: 136.2313223 | L171: 0 | M171: 152.7666336 | N171: 52.76663358 | O171: 0
J172: 179.5183019 | K172: 79.5183019 | L172: 0 | M172: 179.0127481 | N172: 79.01274814 | O172: 0
J173: 49.32268304 | K173: 0 | L173: 50.67731696 | M173: 27.19536643 | N173: 0 | O173: 72.80463357
J174: 114.2251616 | K174: 14.22516158 | L174: 0 | M174: 188.9824104 | N174: 88.98241043 | O174: 0
J175: 68.88762551 | K175: 0 | L175: 31.11237449 | M175: 78.28113966 | N175: 0 | O175: 21.71886034
J176: 95.80366605 | K176: 0 | L176: 4.196333946 | M176: 159.4773933 | N176: 59.47739326 | O176: 0
J177: 158.821463 | K177: 58.82146297 | L177: 0 | M177: 61.99731215 | N177: 0 | O177: 38.00268785
J178: 109.4786081 | K178: 9.478608133 | L178: 0 | M178: 92.83458192 | N178: 0 | O178: 7.165418083
J179: 173.3628007 | K179: 73.36280066 | L179: 0 | M179: 170.2220704 | N179: 70.22207045 | O179: 0
J180: 126.600038 | K180: 26.60003805 | L180: 0 | M180: 73.35518442 | N180: 0 | O180: 26.64481558
J181: 120.9512907 | K181: 20.95129073 | L181: 0 | M181: 60.16761744 | N181: 0 | O181: 39.83238256
J182: 144.7958446 | K182: 44.79584457 | L182: 0 | M182: 156.1107535 | N182: 56.11075355 | O182: 0
J183: 108.8705055 | K183: 8.870505488 | L183: 0 | M183: 64.97560647 | N183: 0 | O183: 35.02439353
J184: 27.94053748 | K184: 0 | L184: 72.05946252 | M184: 27.5767121 | N184: 0 | O184: 72.4232879
J185: 169.6929825 | K185: 69.69298247 | L185: 0 | M185: 96.70682974 | N185: 0 | O185: 3.293170262
J186: 185.0934555 | K186: 85.09345555 | L186: 0 | M186: 56.48879616 | N186: 0 | O186: 43.51120384
J187: 124.9420188 | K187: 24.9420188 | L187: 0 | M187: 59.34721149 | N187: 0 | O187: 40.65278851
J188: 133.1222177 | K188: 33.12221765 | L188: 0 | M188: 59.27194041 | N188: 0 | O188: 40.72805959
J189: 112.8341245 | K189: 12.8341245 | L189: 0 | M189: 37.33752689 | N189: 0 | O189: 62.66247311
J190: 89.07368583 | K190: 0 | L190: 10.92631417 | M190: 64.80994753 | N190: 0 | O190: 35.19005247
J191: 61.93162568 | K191: 0 | L191: 38.06837432 | M191: 90.21186955 | N191: 0 | O191: 9.788130448
J192: 92.65148056 | K192: 0 | L192: 7.348519443 | M192: 164.8659703 | N192: 64.86597026 | O192: 0
J193: 231.1763931 | K193: 131.1763931 | L193: 0 | M193: 42.37504928 | N193: 0 | O193: 57.62495072
J194: 290.152055 | K194: 190.152055 | L194: 0 | M194: 144.1909771 | N194: 44.19097707 | O194: 0
J195: 162.6231593 | K195: 62.62315927 | L195: 0 | M195: 147.7983249 | N195: 47.7983249 | O195: 0
J196: 76.25615652 | K196: 0 | L196: 23.74384348 | M196: 91.48673067 | N196: 0 | O196: 8.51326933
J197: 183.9867847 | K197: 83.98678472 | L197: 0 | M197: 183.2781084 | N197: 83.27810842 | O197: 0
J198: 106.0038957 | K198: 6.003895701 | L198: 0 | M198: 142.6320177 | N198: 42.63201773 | O198: 0
J199: 91.45421437 | K199: 0 | L199: 8.545785627 | M199: 214.0734056 | N199: 114.0734056 | O199: 0
J200: 122.7845262 | K200: 22.78452622 | L200: 0 | M200: 92.19949033 | N200: 0 | O200: 7.800509668
J201: 90.43023299 | K201: 0 | L201: 9.569767007 | M201: 180.6883663 | N201: 80.68836628 | O201: 0
J202: 85.58778418 | K202: 0 | L202: 14.41221582 | M202: 67.03706546 | N202: 0 | O202: 32.96293454
J203: 62.14388862 | K203: 0 | L203: 37.85611138 | M203: 62.10851452 | N203: 0 | O203: 37.89148548
J204: 28.86059113 | K204: 0 | L204: 71.13940887 | M204: 31.92694094 | N204: 0 | O204: 68.07305906
J205: 113.6944472 | K205: 13.6944472 | L205: 0 | M205: 195.3133227 | N205: 95.31332274 | O205: 0
J206: 66.58270313 | K206: 0 | L206: 33.41729687 | M206: 105.6812796 | N206: 5.681279643 | O206: 0
J207: 47.59695059 | K207: 0 | L207: 52.40304941 | M207: 47.67106764 | N207: 0 | O207: 52.32893236
J208: 91.53420875 | K208: 0 | L208: 8.465791253 | M208: 192.138055 | N208: 92.13805497 | O208: 0
J209: 156.364094 | K209: 56.36409404 | L209: 0 | M209: 164.8653178 | N209: 64.8653178 | O209: 0
J210: 32.03225867 | K210: 0 | L210: 67.96774133 | M210: 83.16136624 | N210: 0 | O210: 16.83863376
J211: 163.2056021 | K211: 63.20560207 | L211: 0 | M211: 66.89043038 | N211: 0 | O211: 33.10956962
J212: 51.38605953 | K212: 0 | L212: 48.61394047 | M212: 81.34132287 | N212: 0 | O212: 18.65867713
J213: 89.65792494 | K213: 0 | L213: 10.34207506 | M213: 151.6684224 | N213: 51.66842243 | O213: 0
J214: 80.49124615 | K214: 0 | L214: 19.50875385 | M214: 174.9828642 | N214: 74.98286425 | O214: 0
J215: 85.20702505 | K215: 0 | L215: 14.79297495 | M215: 137.770493 | N215: 37.77049302 | O215: 0
J216: 43.40286876 | K216: 0 | L216: 56.59713124 | M216: 44.71747776 | N216: 0 | O216: 55.28252224
J217: 63.19117413 | K217: 0 | L217: 36.80882587 | M217: 48.41452709 | N217: 0 | O217: 51.58547291
J218: 110.2762143 | K218: 10.27621427 | L218: 0 | M218: 122.1283232 | N218: 22.12832322 | O218: 0
... 4282 more rows

Sheet Case 1
A1: Option3.XLS
A2: Using Monte Carlo Simulation to Value BS Options
A4: Share price (S) | B4: 100 | D4: iopt | E4: 1
A5: Exercise price (X) | B5: 100 | D5: option | E5: =IF(E4=1,"call","put") -> call
A6: Int rate-cont (r) | B6: 0
D7: BS value | E7: =BSOptionValue(E4,B4,B5,B6,B8,B11,B12) -> 17.69367262 | R7: =AVERAGE(R10:R65536) -> 7.971661995
A8: Dividend yield (q) | B8: 0
A9: Time now (0, years) | B9: 0 | D9: MC value | E9: =B18*AVERAGE(H22:H57) -> 14.26919924
A10: Time maturity (T, years) | B10: =Simulation!F7/Simulation!F5 -> 5 | D10: MC stdev | E10: =B18*STDEV(H22:H57)/SQRT(B14) -> 3.852959622 | R10: 6.805743349
A11: Option life (t, years) | B11: =B10-B9 -> 5 | R11: 7.686833461
A12: Volatility (s) | B12: 0.2 | R12: 6.833960743
R13: 10.21292789
A14: Simulations (nsim) | B14: 36 | E14: base x exp(-.5*vol^2+vol x sqrt(t)) | R14: 7.554176973
R15: 5.450605503
A16: rnmut | B16: =(B6-B8-0.5*(B12^2))*B11 -> -0.1 | D16: (r -y-.5*vol^2)*t | G16: =B12^2 -> 0.04 | H16: =G16*G18*-0.5 -> -7.936507937e-05 | R16: 9.454408995
A17: sigt | B17: =B12*SQRT(B11) -> 0.4472135955 | D17: vol * squart root (time) | F17: =SQRT(B10) -> 2.236067977 | J17: =B18*SUMPRODUCT(J22:J57,H22:H57) -> 14.26919924 | R17: 9.386242227
A18: Exp(-rt) | B18: =EXP(-B6*B11) -> 1 | E18: 1/252 | G18: =1/252 -> 0.003968253968 | R18: 11.02686009
E19: (1/252)^.5 | G19: =G18^0.5 -> 0.06299407883 | H19: =G19*B12 -> 0.01259881577 | R19: 6.326286293
A20: simulation | B20: rand | C20: randns | E20: share price | H20: payoff | J20: pdf | R20: 8.203361977
B21: =AVERAGE(B22:B57) -> 0.4615468845 | C21: =AVERAGE(C22:C57) -> -0.1856494903 | E21: =AVERAGE(E22:E57) -> 92.56624222 | R21: 9.179570545
A22: 1 | B22: =RAND() -> 0.4138936206 | C22: =NORMSINV(B22) -> -0.2175403806 | E22: =$B$4*EXP($B$16+C22*$B$17) -> 82.09549725 | H22: =MAX($E$4*(E22-$B$5),0) -> 0 | J22: =1/$B$14 -> 0.02777777778 | L22: =E22 -> 82.09549725 | M22: =C22 -> -0.2175403806 | R22: 8.871423371
A23: 2 | B23: =RAND() -> 0.3479041144 | C23: =NORMSINV(B23) -> -0.3909851281 | E23: 75.96831315 | H23: =MAX($E$4*(E23-$B$5),0) -> 0 | J23: =1/$B$14 -> 0.02777777778 | L23: =E23 -> 75.96831315 | R23: 8.03127964
A24: 3 | B24: 0.07138564407 | C24: -1.465548654 | E24: 46.98164074 | H24: 0 | J24: 0.02777777778 | L24: 46.98164074 | R24: 7.303392699
A25: 4 | B25: 0.02376462465 | C25: -1.981553381 | E25: 37.29997192 | H25: 0 | J25: 0.02777777778 | L25: 37.29997192 | R25: 6.348045431
A26: 5 | B26: 0.7748275492 | C26: 0.7548401476 | E26: 126.8169822 | H26: 26.81698224 | J26: 0.02777777778 | L26: 126.8169822 | R26: 11.73563187
A27: 6 | B27: 0.3963992597 | C27: -0.2626783315 | E27: 80.45490691 | H27: 0 | J27: 0.02777777778 | L27: 80.45490691 | R27: 8.718618188
A28: 7 | B28: 0.0141505881 | C28: -2.193086101 | E28: 33.933145 | H28: 0 | J28: 0.02777777778 | L28: 33.933145 | R28: 10.14184051
A29: 8 | B29: 0.4269888096 | C29: -0.1840456805 | E29: 83.33448553 | H29: 0 | J29: 0.02777777778 | L29: 83.33448553 | R29: 5.562694873
A30: 9 | B30: 0.401807115 | C30: -0.2486723612 | E30: 80.96043068 | H30: 0 | J30: 0.02777777778 | L30: 80.96043068 | R30: 9.039400759
A31: 10 | B31: 0.0827049633 | C31: -1.387104413 | E31: 48.65907045 | H31: 0 | J31: 0.02777777778 | L31: 48.65907045 | R31: 7.85742189
A32: 11 | B32: 0.5981108938 | C32: 0.2484603914 | E32: 101.1176865 | H32: 1.117686456 | J32: 0.02777777778 | L32: 101.1176865 | R32: 5.584589177
A33: 12 | B33: 0.8906023764 | C33: 1.22973796 | E33: 156.8242451 | H33: 56.82424511 | J33: 0.02777777778 | L33: 156.8242451 | R33: 5.663593915
A34: 13 | B34: 0.0953439016 | C34: -1.30854712 | E34: 50.39893901 | H34: 0 | J34: 0.02777777778 | L34: 50.39893901 | R34: 7.141375466
A35: 14 | B35: 0.9068041973 | C35: 1.321329249 | E35: 163.3812767 | H35: 63.38127673 | J35: 0.02777777778 | L35: 163.3812767 | R35: 8.655579104
A36: 15 | B36: 0.1407862233 | C36: -1.076793686 | E36: 55.90274083 | H36: 0 | J36: 0.02777777778 | L36: 55.90274083 | R36: 11.70085523
A37: 16 | B37: 0.4138057528 | C37: -0.2177659117 | E37: 82.08721747 | H37: 0 | J37: 0.02777777778 | L37: 82.08721747 | R37: 6.974637563
A38: 17 | B38: 0.7395937258 | C38: 0.6420933885 | E38: 120.5811631 | H38: 20.5811631 | J38: 0.02777777778 | L38: 120.5811631 | R38: 6.42198901
A39: 18 | B39: =RAND() -> 0.706076438 | C39: =NORMSINV(B39) -> 0.5419584581 | E39: 115.3004554 | H39: =MAX($E$4*(E39-$B$5),0) -> 15.30045536 | J39: =1/$B$14 -> 0.02777777778 | L39: 115.3004554 | R39: 9.267531744
A40: 19 | B40: 0.8816369972 | C40: 1.183209811 | E40: 153.5947591 | H40: 53.59475913 | J40: 0.02777777778 | L40: 153.5947591 | R40: 9.858911851
A41: 20 | B41: 0.06579218935 | C41: -1.507883373 | E41: 46.10052052 | H41: 0 | J41: 0.02777777778 | L41: 46.10052052 | R41: 9.238039948
A42: 21 | B42: 0.8308221083 | C42: 0.9574190572 | E42: 138.8426122 | H42: 38.84261215 | J42: 0.02777777778 | L42: 138.8426122 | R42: 10.53564964
A43: 22 | B43: 0.4112019668 | C43: -0.2244541579 | E43: 81.8420553 | H43: 0 | J43: 0.02777777778 | L43: 81.8420553 | R43: 8.955011159
A44: 23 | B44: 0.06081522309 | C44: -1.547966152 | E44: 45.2815053 | H44: 0 | J44: 0.02777777778 | L44: 45.2815053 | R44: 7.542991966
A45: 24 | B45: 0.4357983135 | C45: -0.1616307674 | E45: 84.17405256 | H45: 0 | J45: 0.02777777778 | L45: 84.17405256 | R45: 9.3015853
A46: 25 | B46: 0.5867754771 | C46: 0.2192580402 | E46: 99.80570664 | H46: 0 | J46: 0.02777777778 | L46: 99.80570664 | R46: 8.233456657
A47: 26 | B47: 0.936252831 | C47: 1.52405754 | E47: 178.8861265 | H47: 78.88612646 | J47: 0.02777777778 | L47: 178.8861265 | R47: 7.310215816
A48: 27 | B48: 0.486029226 | C48: -0.03502669799 | E48: 89.07741031 | H48: 0 | J48: 0.02777777778 | L48: 89.07741031 | R48: 8.616367854
A49: 28 | B49: 0.7752681814 | C49: 0.7563095274 | E49: 126.9003444 | H49: 26.90034445 | J49: 0.02777777778 | L49: 126.9003444 | R49: 6.10627011
A50: 29 | B50: 0.04626767751 | C50: -1.682172706 | E50: 42.64370566 | H50: 0 | J50: 0.02777777778 | L50: 42.64370566 | R50: 11.34914795
A51: 30 | B51: 0.5492570881 | C51: 0.123784602 | E51: 95.63399403 | H51: 0 | J51: 0.02777777778 | L51: 95.63399403 | R51: 5.559004238
A52: 31 | B52: 0.8384883225 | C52: 0.9882640338 | E52: 140.7711184 | H52: 40.77111842 | J52: 0.02777777778 | L52: 140.7711184 | R52: 9.874475213
A53: 32 | B53: 0.4088785711 | C53: -0.2304306558 | E53: 81.62360229 | H53: 0 | J53: 0.02777777778 | L53: 81.62360229 | R53: 7.826931678
A54: 33 | B54: 0.03657663343 | C54: -1.791873281 | E54: 40.60211234 | H54: 0 | J54: 0.02777777778 | L54: 40.60211234 | R54: 7.012371496
A55: 34 | B55: =RAND() -> 0.1227857643 | C55: =NORMSINV(B55) -> -1.161173059 | E55: 53.83252333 | H55: =MAX($E$4*(E55-$B$5),0) -> 0 | J55: =1/$B$14 -> 0.02777777778 | L55: 53.83252333 | R55: 5.509438434
A56: 35 | B56: =RAND() -> 0.8931319596 | C56: =NORMSINV(B56) -> 1.243357617 | E56: 157.7823602 | H56: =MAX($E$4*(E56-$B$5),0) -> 57.78236024 | J56: =1/$B$14 -> 0.02777777778 | L56: 157.7823602 | R56: 10.96386049
A57: 36 | B57: =RAND() -> 0.804959513 | C57: =NORMSINV(B57) -> 0.8594705265 | E57: 132.8920428 | H57: =MAX($E$4*(E57-$B$5),0) -> 32.8920428 | J57: =1/$B$14 -> 0.02777777778 | L57: 132.8920428 | R57: 7.906164993
R58: 7.03758623
R59: 7.37694907
R60: 10.37660034
R61: 6.807191693
R62: 8.247388276
R63: 7.576174805
R64: 9.181000786
R65: 6.656260237
R66: 7.439304016
R67: 5.287440081
R68: 6.476153848
R69: 6.338040789
R70: 8.14958861
R71: 7.204591052
R72: 10.24359858
R73: 4.865518117
R74: 5.41648657
R75: 8.091104367
R76: 10.01588038
R77: 5.381585567
R78: 5.871342138
R79: 4.764306198
R80: 4.915304766
R81: 3.983018446
R82: 10.61865858
R83: 6.535634239
R84: 11.93030642
R85: 7.712370591
R86: 3.476275977
R87: 3.618461284
R88: 5.612550771
R89: 8.411706854
R90: 6.328862338
R91: 4.854247757
R92: 6.628311968
R93: 7.360968977
R94: 5.270983463
R95: 6.001327553
R96: 5.95045074
R97: 6.416699201
R98: 8.242078745
R99: 8.250273663
R100: 9.65345774
R101: 7.599860282
R102: 6.109149277
R103: 9.736958658
R104: 4.778847695
R105: 3.027594643
R106: 6.577456484
R107: 7.827193346
R108: 12.89096454
R109: 8.768305607
R110: 8.517449927
R111: 9.453226673
R112: 6.308704008
R113: 8.507826359
R114: 15.24042001
R115: 10.69055921
R116: 7.581012385
R117: 8.313159958
R118: 6.211452318
R119: 11.41663721
R120: 7.794523568
R121: 12.54854546
R122: 4.36576752
R123: 5.733831381
R124: 7.004272071
R125: 6.14679299
R126: 9.095499749
R127: 10.66337604
R128: 2.707948893
R129: 6.81377401
R130: 6.617360923
R131: 8.43725151
R132: 4.658157719
R133: 12.99630279
R134: 10.397231
R135: 9.757997358
R136: 8.146261472
R137: 7.088098995
R138: 7.320026613
R139: 9.014665456
R140: 5.770048203
R141: 6.893060464
R142: 9.429729903
R143: 6.718624314
R144: 10.07025334
R145: 4.043716623
R146: 7.501790133
R147: 6.422604638
R148: 8.650287414
R149: 5.037272807
R150: 7.643426779
R151: 9.078292316
R152: 8.145313963
R153: 6.942834222
R154: 7.723721151
R155: 4.295139216
R156: 5.452880132
R157: 6.829224241
R158: 9.166043583
R159: 11.29030122
R160: 7.235418349
R161: 5.64192178
R162: 9.715212438
R163: 7.721775322
R164: 5.986978122
R165: 9.104341855
R166: 8.340965538
R167: 8.113012423
R168: 7.566898593
R169: 5.626171172
R170: 6.535639471
R171: 7.729497468
R172: 4.279428936
R173: 11.71803807
R174: 9.153187562
R175: 11.58010666
R176: 7.726148157
R177: 7.092311369
R178: 5.045781051
R179: 6.393784939
R180: 6.218697893
R181: 7.501101509
R182: 10.366264
R183: 11.36527139
R184: 6.257742038
R185: 8.774586625
R186: 11.03026759
R187: 6.146933306
R188: 8.562529488
R189: 7.203568494
R190: 9.071876692
R191: 11.51810573
R192: 13.97188346
R193: 9.109182908
R194: 7.085520954
R195: 10.41154207
R196: 6.289373555
R197: 4.321945198
R198: 11.16611246
R199: 7.944326726
R200: 5.103340357
R201: 4.06616669
... 4809 more rows

Sheet Fixed
A1: Option3.XLS
A2: Using Monte Carlo Simulation to Value BS Options
A4: Share price (S) | B4: 100 | D4: iopt | E4: 1
A5: Exercise price (X) | B5: 100 | D5: option | E5: =IF(E4=1,"call","put") -> call
A6: Int rate-cont (r) | B6: 0
D7: BS value | E7: =BSOptionValue(E4,B4,B5,B6,B8,B11,B12) -> 7.965567455 | R7: =AVERAGE(R10:R65536) -> 7.971661995
A8: Dividend yield (q) | B8: 0
A9: Time now (0, years) | B9: 0 | D9: MC value | E9: =B18*AVERAGE(H22:H57) -> 9.869096718
A10: Time maturity (T, years) | B10: 1 | D10: MC stdev | E10: =B18*STDEV(H22:H57)/SQRT(B14) -> 2.888763837 | R10: 6.805743349
A11: Option life (t, years) | B11: =B10-B9 -> 1 | R11: 7.686833461
A12: Volatility (s) | B12: 0.2 | R12: 6.833960743
R13: 10.21292789
A14: Simulations (nsim) | B14: 36 | E14: base x exp(-.5*vol^2+vol x sqrt(t)) | R14: 7.554176973
R15: 5.450605503
A16: rnmut | B16: =(B6-B8-0.5*(B12^2))*B11 -> -0.02 | D16: (r -y-.5*vol^2)*t | G16: =B12^2 -> 0.04 | H16: =G16*G18*-0.5 -> -7.936507937e-05 | R16: 9.454408995
A17: sigt | B17: =B12*SQRT(B11) -> 0.2 | D17: vol * squart root (time) | F17: =SQRT(B10) -> 1 | J17: =B18*SUMPRODUCT(J22:J57,H22:H57) -> 9.869096718 | R17: 9.386242227
A18: Exp(-rt) | B18: =EXP(-B6*B11) -> 1 | E18: 1/252 | G18: =1/252 -> 0.003968253968 | R18: 11.02686009
E19: (1/252)^.5 | G19: =G18^0.5 -> 0.06299407883 | H19: =G19*B12 -> 0.01259881577 | R19: 6.326286293
A20: simulation | B20: rand | C20: randns | E20: share price | H20: payoff | J20: pdf | R20: 8.203361977
B21: =AVERAGE(B22:B57) -> 0.5028099945 | C21: =AVERAGE(C22:C57) -> 0.07268102566 | E21: =AVERAGE(E22:E57) -> 101.9291499 | R21: 9.179570545
A22: 1 | B22: 0.25 | C22: =NORMSINV(B22) -> -0.6744897502 | E22: =$B$4*EXP($B$16+C22*$B$17) -> 85.65025791 | H22: =MAX($E$4*(E22-$B$5),0) -> 0 | J22: =1/$B$14 -> 0.02777777778 | L22: =E22 -> 85.65025791 | M22: =C22 -> -0.6744897502 | R22: 8.871423371
A23: 2 | B23: 0.75 | C23: =NORMSINV(B23) -> 0.6744897502 | E23: 112.1758956 | H23: =MAX($E$4*(E23-$B$5),0) -> 12.17589563 | J23: =1/$B$14 -> 0.02777777778 | L23: =E23 -> 112.1758956 | R23: 8.03127964
A24: 3 | B24: 0.5 | C24: 0 | E24: 98.01986733 | H24: 0 | J24: 0.02777777778 | L24: 98.01986733 | R24: 7.303392699
A25: 4 | B25: =RAND() -> 0.9924788028 | C25: 2.431356773 | E25: 159.4039491 | H25: 59.40394906 | J25: 0.02777777778 | L25: 159.4039491 | R25: 6.348045431
A26: 5 | B26: 0.571396562 | C26: 0.1799308242 | E26: 101.6114627 | H26: 1.61146272 | J26: 0.02777777778 | L26: 101.6114627 | R26: 11.73563187
A27: 6 | B27: 0.3071097368 | C27: -0.5040596314 | E27: 88.6200615 | H27: 0 | J27: 0.02777777778 | L27: 88.6200615 | R27: 8.718618188
A28: 7 | B28: 0.0801609476 | C28: -1.403989772 | E28: 74.02273173 | H28: 0 | J28: 0.02777777778 | L28: 74.02273173 | R28: 10.14184051
A29: 8 | B29: 0.6836319818 | C29: 0.477879411 | E29: 107.8505064 | H29: 7.850506395 | J29: 0.02777777778 | L29: 107.8505064 | R29: 5.562694873
A30: 9 | B30: 0.09478570744 | C30: -1.311848032 | E30: 75.39949517 | H30: 0 | J30: 0.02777777778 | L30: 75.39949517 | R30: 9.039400759
A31: 10 | B31: 0.1098127147 | C31: -1.227524739 | E31: 76.68186488 | H31: 0 | J31: 0.02777777778 | L31: 76.68186488 | R31: 7.85742189
A32: 11 | B32: 0.7557006193 | C32: 0.6925392254 | E32: 112.5815706 | H32: 12.58157062 | J32: 0.02777777778 | L32: 112.5815706 | R32: 5.584589177
A33: 12 | B33: 0.9911914915 | C33: 2.373570762 | E33: 157.5722902 | H33: 57.57229021 | J33: 0.02777777778 | L33: 157.5722902 | R33: 5.663593915
A34: 13 | B34: 0.334715373 | C34: -0.4269294066 | E34: 89.99771712 | H34: 0 | J34: 0.02777777778 | L34: 89.99771712 | R34: 7.141375466
A35: 14 | B35: 0.3792198376 | C35: -0.3075304163 | E35: 92.17271027 | H35: 0 | J35: 0.02777777778 | L35: 92.17271027 | R35: 8.655579104
A36: 15 | B36: 0.4725922985 | C36: -0.06875505161 | E36: 96.68122009 | H36: 0 | J36: 0.02777777778 | L36: 96.68122009 | R36: 11.70085523
A37: 16 | B37: 0.2108516441 | C37: -0.8034697258 | E37: 83.46907808 | H37: 0 | J37: 0.02777777778 | L37: 83.46907808 | R37: 6.974637563
A38: 17 | B38: 0.536408916 | C38: 0.09139067876 | E38: 99.82796173 | H38: 0 | J38: 0.02777777778 | L38: 99.82796173 | R38: 6.42198901
A39: 18 | B39: 0.8467242757 | C39: 1.022484915 | E39: 120.2613353 | H39: 20.2613353 | J39: 0.02777777778 | L39: 120.2613353 | R39: 9.267531744
A40: 19 | B40: 0.2122882406 | C40: -0.7985067437 | E40: 83.55197032 | H40: 0 | J40: 0.02777777778 | L40: 83.55197032 | R40: 9.858911851
A41: 20 | B41: 0.9760021879 | C41: 1.97740717 | E41: 145.5692066 | H41: 45.56920657 | J41: 0.02777777778 | L41: 145.5692066 | R41: 9.238039948
A42: 21 | B42: 0.8055974976 | C42: 0.8617865187 | E42: 116.457627 | H42: 16.45762696 | J42: 0.02777777778 | L42: 116.457627 | R42: 10.53564964
A43: 22 | B43: 0.3280840118 | C43: -0.4452099682 | E43: 89.66927613 | H43: 0 | J43: 0.02777777778 | L43: 89.66927613 | R43: 8.955011159
A44: 23 | B44: 0.5416413823 | C44: 0.1045697293 | E44: 100.0914364 | H44: 0.09143636452 | J44: 0.02777777778 | L44: 100.0914364 | R44: 7.542991966
A45: 24 | B45: 0.1299633001 | C45: -1.126564631 | E45: 78.24596478 | H45: 0 | J45: 0.02777777778 | L45: 78.24596478 | R45: 9.3015853
A46: 25 | B46: 0.1548747415 | C46: -1.015747834 | E46: 79.99951876 | H46: 0 | J46: 0.02777777778 | L46: 79.99951876 | R46: 8.233456657
A47: 26 | B47: 0.1416696507 | C47: -1.072848042 | E47: 79.09111779 | H47: 0 | J47: 0.02777777778 | L47: 79.09111779 | R47: 7.310215816
A48: 27 | B48: 0.7327361534 | C48: 0.6211093266 | E48: 110.9846664 | H48: 10.98466641 | J48: 0.02777777778 | L48: 110.9846664 | R48: 8.616367854
A49: 28 | B49: 0.9630439551 | C49: 1.787157169 | E49: 140.134352 | H49: 40.13435202 | J49: 0.02777777778 | L49: 140.134352 | R49: 6.10627011
A50: 29 | B50: 0.6059959105 | C50: 0.2688979962 | E50: 103.4356609 | H50: 3.435660863 | J50: 0.02777777778 | L50: 103.4356609 | R50: 11.34914795
A51: 30 | B51: 0.03190137114 | C51: -1.853555757 | E51: 67.65755558 | H51: 0 | J51: 0.02777777778 | L51: 67.65755558 | R51: 5.559004238
A52: 31 | B52: 0.6508457637 | C52: 0.3876048588 | E52: 105.9207484 | H52: 5.920748387 | J52: 0.02777777778 | L52: 105.9207484 | R52: 9.874475213
A53: 32 | B53: 0.09483101987 | C53: -1.311579541 | E53: 75.40354409 | H53: 0 | J53: 0.02777777778 | L53: 75.40354409 | R53: 7.826931678
A54: 33 | B54: 0.9762930823 | C54: 1.982584722 | E54: 145.7200231 | H54: 45.72002307 | J54: 0.02777777778 | L54: 145.7200231 | R54: 7.012371496
A55: 34 | B55: =RAND() -> 0.5617644409 | C55: =NORMSINV(B55) -> 0.155444229 | E55: 101.1150555 | H55: =MAX($E$4*(E55-$B$5),0) -> 1.115055494 | J55: =1/$B$14 -> 0.02777777778 | L55: 101.1150555 | R55: 5.509438434
A56: 35 | B56: =RAND() -> 0.7660963282 | C56: =NORMSINV(B56) -> 0.7260512653 | E56: 113.3386726 | H56: =MAX($E$4*(E56-$B$5),0) -> 13.3386726 | J56: =1/$B$14 -> 0.02777777778 | L56: 113.3386726 | R56: 10.96386049
A57: 36 | B57: =RAND() -> 0.5607498558 | C57: =NORMSINV(B57) -> 0.1528706416 | E57: 101.0630232 | H57: =MAX($E$4*(E57-$B$5),0) -> 1.0630232 | J57: =1/$B$14 -> 0.02777777778 | L57: 101.0630232 | R57: 7.906164993
R58: 7.03758623
R59: 7.37694907
R60: 10.37660034
R61: 6.807191693
R62: 8.247388276
R63: 7.576174805
R64: 9.181000786
R65: 6.656260237
R66: 7.439304016
R67: 5.287440081
R68: 6.476153848
R69: 6.338040789
R70: 8.14958861
R71: 7.204591052
R72: 10.24359858
R73: 4.865518117
R74: 5.41648657
R75: 8.091104367
R76: 10.01588038
R77: 5.381585567
R78: 5.871342138
R79: 4.764306198
R80: 4.915304766
R81: 3.983018446
R82: 10.61865858
R83: 6.535634239
R84: 11.93030642
R85: 7.712370591
R86: 3.476275977
R87: 3.618461284
R88: 5.612550771
R89: 8.411706854
R90: 6.328862338
R91: 4.854247757
R92: 6.628311968
R93: 7.360968977
R94: 5.270983463
R95: 6.001327553
R96: 5.95045074
R97: 6.416699201
R98: 8.242078745
R99: 8.250273663
R100: 9.65345774
R101: 7.599860282
R102: 6.109149277
R103: 9.736958658
R104: 4.778847695
R105: 3.027594643
R106: 6.577456484
R107: 7.827193346
R108: 12.89096454
R109: 8.768305607
R110: 8.517449927
R111: 9.453226673
R112: 6.308704008
R113: 8.507826359
R114: 15.24042001
R115: 10.69055921
R116: 7.581012385
R117: 8.313159958
R118: 6.211452318
R119: 11.41663721
R120: 7.794523568
R121: 12.54854546
R122: 4.36576752
R123: 5.733831381
R124: 7.004272071
R125: 6.14679299
R126: 9.095499749
R127: 10.66337604
R128: 2.707948893
R129: 6.81377401
R130: 6.617360923
R131: 8.43725151
R132: 4.658157719
R133: 12.99630279
R134: 10.397231
R135: 9.757997358
R136: 8.146261472
R137: 7.088098995
R138: 7.320026613
R139: 9.014665456
R140: 5.770048203
R141: 6.893060464
R142: 9.429729903
R143: 6.718624314
R144: 10.07025334
R145: 4.043716623
R146: 7.501790133
R147: 6.422604638
R148: 8.650287414
R149: 5.037272807
R150: 7.643426779
R151: 9.078292316
R152: 8.145313963
R153: 6.942834222
R154: 7.723721151
R155: 4.295139216
R156: 5.452880132
R157: 6.829224241
R158: 9.166043583
R159: 11.29030122
R160: 7.235418349
R161: 5.64192178
R162: 9.715212438
R163: 7.721775322
R164: 5.986978122
R165: 9.104341855
R166: 8.340965538
R167: 8.113012423
R168: 7.566898593
R169: 5.626171172
R170: 6.535639471
R171: 7.729497468
R172: 4.279428936
R173: 11.71803807
R174: 9.153187562
R175: 11.58010666
R176: 7.726148157
R177: 7.092311369
R178: 5.045781051
R179: 6.393784939
R180: 6.218697893
R181: 7.501101509
R182: 10.366264
R183: 11.36527139
R184: 6.257742038
R185: 8.774586625
R186: 11.03026759
R187: 6.146933306
R188: 8.562529488
R189: 7.203568494
R190: 9.071876692
R191: 11.51810573
R192: 13.97188346
R193: 9.109182908
R194: 7.085520954
R195: 10.41154207
R196: 6.289373555
R197: 4.321945198
R198: 11.16611246
R199: 7.944326726
R200: 5.103340357
R201: 4.06616669
... 4809 more rows
